Workbook

Sheet Cover Page
D1: Add company logo
K2: Template version 25.1a (for incinerators) - 27/11/25
K4: Note that there is another version of this template available for co-incinerators
B8: Add photo
K13: Notes:
K14: This template may require adjustments by individual operators to meet specific reporting requirements as defined in the site Permit(s)
B29: Annual Performance Report 2025
B31: Permit EPR/ZP3937KL
B33: Severnside Energy Recovery Centre
B37: SUEZ Recycling and Recovery UK Ltd
B39: Year: | C39: 2025
B41: Address: | C41: Severn Road, Severnside, Hallen, South Gloucestershire, BS10 7GB
B43: Tel: | C43: 0117 938 1229
B45: Email: | C45: enquiries.uk@suez.com
B47: Prepared by: | C47: Krishna Patel Richard Watkins | F47: Position: | G47: Technical Plant Engineer EIR Manager
B49: Approved by: | C49: David Appleby | F49: Position: | G49: Plant Manager
B51: Version: | C51: 1
B53: Issue Date: | C53: 2026-01-30

Sheet Facility Info
A1: =+'Cover Page'!$B$29 -> Annual Performance Report 2025 | E1: =+'Cover Page'!$B$33 -> Severnside Energy Recovery Centre
A3: Plant Description and Design | K3: Notes:
A5: The installation is an Energy from Waste (EfW) plant which can process up to 467,082 tonnes of residual (non-recyclable) Commercial and Industrial and Municipal waste per annum, leading to a net export of approximately 37 MW of electrical energy to the National Grid. The facility comprises two identical moving grate incinerator combustion lines with a combined capacity of approximately 50 tonne/hr of waste of an approximate 9.8MJ/kg calorific value. The waste is delivered to the site by road, and rail by a dedicated onsite railhead served by two gantry cranes. The plant has two auxiliary burners to support start-up and shutdown on each incineration line, and a stand-by diesel generator to support emergency shutdown in the event of power failure. The incinerator bottom ash (IBA) waste on the site is quenched to control dust fugitive emissions and transferred by covered conveyors to the onsite bottom ash recycling plant. The bottom ash recycling plant uses magnets, eddy current separators and a trommel to recover ferrous metals and non-ferrous metals from the bottom ash. Hazardous air pollution control residues (APCR) from the flue gas treatment plant are collected and removed offsite for treatment. The treatment process involves the removal of contaminants and reuse of the fine ash material in a lime rich filter cake product for land remediation. SNCR (ammonia) is used to reduce emissions of oxides of nitrogen, lime to reduce acid gas emissions and carbon injection for reduction of organics including dioxins and PAH emissions, and heavy metals. Bag filters within the flue gas treatment plant remove dust (particulates) from the emissions to air. The treated emissions to air are released through two 118 metre stacks comprising two flues that run the full length of the stack (one for each incineration line). A continuous emissions monitoring system (CEMS) is installed, as required by the permit, to provide continuous analysis of oxides of nitrogen, sulphur dioxide, carbon monoxide, carbon dioxide, hydrogen chloride, particulates, total organic carbon, ammonia and nitrous oxide emissions to air from the two stacks. The main emissions to air from the site are the combustion gases, predominantly carbon dioxide and water vapour. Trace gases present include oxides of nitrogen, sulphur dioxide, hydrogen chloride, ammonia, dioxins and furans, dioxin like PCB's and polyaromatic hydrocarbons. Very low levels of particulates and some heavy metals may also be present. There are no emissions from the process to controlled waters. Water discharge of uncontaminated surface (rain) water is permitted. The Severn Estuary SAC, SSSI, SPA and RAMSAR sites are within 10km of the site, along with the River Wye and Avon Gorge Woodlands. | K5: Include summary of plant design, design capacity, no. of combustion lines, electrical and heat capacity and any other general information that describes the facility, its location and purpose
A20: Summary of Operational Processes and Procedures
A22: Activity listed in Schedule 1 of the EP Regulations S5.1 A1 (b) The incineration of non-hazardous waste in a waste incineration plant with a capacity of 3 tonnes per hour or more. From receipt of commercial, industrial and municipal waste by road and/or rail to storage of gas oil auxiliary fuel, to incineration of waste and removal of ash. The receipt, handling, storage, processing and treatment of incinerator bottom ash only from within the installation. Directly Associated Activities The generation of up to 39 MWe electrical power, with approximately 37 MWe for export to the National Grid, using a steam turbine from energy recovered from the flue gases. From receipt of commercial, industrial and municipal waste by road and/or rail to storage of gas oil auxiliary fuel, to incineration of waste and removal of ash. The receipt, handling, storage, processing and treatment of incinerator bottom ash only from within the installation. Standby diesel generator for providing emergency electrical power to the plant in the event of supply interruption. From receipt of diesel fuel to production of electricity for controlled shutdown of incinerator in the event of power failure at the site. Railhead; operation of designated railhead for the receipt of waste for thermal treatment and the potential dispatch by rail of recycled bottom ash as a secondary aggregate. From receipt of waste to the potential loading of processed IBA, limited within the site boundary. Plant Description Incoming contract waste is delivered to site by rail with each train carrying approximately 1,000 tonnes of waste in 78 containers. Each container is transferred by gantry crane to roll on/off vehicles and taken to the Tipping Hall for unloading into the waste bunker. Third party waste is received by road, checked in, weighed and delivered into the reception hall by Roro’s, refuse collection vehicles and bulk transport vehicles. RECEPTION HALL A large reception hall allows for vehicles delivering waste to the site to manoeuvre and tip waste safely. The tipping hall is constructed above ground level as part of the sites flood protection strategy. HGV access to and egress from the Tipping Hall is via ramps on the south and north sides of the building. Air needed for combustion is drawn into the furnace from here (above the waste bunker) so that negative pressure is maintained in order to avoid odour and dust escaping the building. The tipping hall also includes an automatic dust and odour suppression system. WASTE BUNKER Waste vehicles reverse to a wheel stop and tip their loads into a large concrete bunker. The waste cranes operate over the waste bunker automatically to mix the waste to improve the homogeneity of the incinerator feedstock and feed the waste hoppers for each incineration line. Manual control by crane operators is carried out as and when required. Inspection of wastes received is carried out by the Day Operations team to look for unsuitable material and non-permitted wastes to be removed. CONTROL ROOM The plant’s control room contains the Distributed Control System (DCS) which centralises the operation of the plant, and all equipment, including the grab cranes used to mix and load waste into the hoppers that feed the incineration lines. All on-site functions are monitored automatically and manually. Its systems verify in real time that equipment is functioning properly, continuously monitor the combustion processes, flue gases, and maximise the efficiency of the entire EfW process. GRATE AND BOILER Waste is lifted into the feed hoppers by the waste cranes. From here it is dropped into the furnace feed chute and then is introduced onto the grate system by hydraulic ram feeders for incineration. Auxiliary burners are used at start up and shut down, and can be used to help keep the furnace temperature above 850°C if required. The plant has two auxiliary burners per incineration line. The thermal energy released from the incineration of waste is used to convert water to super-heated steam through the boiler and 4th pass superheater. At high pressure, this steam drives a turbine to generate electricity. ELECTRICITY GENERATION The turbine drives a step down gearbox, which in turn drives a generator. Electricity is generated at 11kv, with electricity production of 312,000 MWh/annum (based on 39MW and 8,000 operating hours) and exporting approximately 296,000 MWh/annum to the national grid. INCINERATOR BOTTOM ASH (IBA) Ash left on the grate after incineration falls through the grate riddling's or off the end of the grate, is combined with boiler ash produced in the superheater and passes into the bottom ash extractor. The bottom ash extractor contains water to quench the ash and to provide an air seal for the furnace. The material is removed from the bottom ash extractor by a drag conveyor passing the material onto the vibrating fingers for removal of the oversize metal content. The oversize metal drops into a skip for collection and the remaining IBA material is dropped onto a conveyor for transport to the on site IBA recycling plant. Up to 100,000 tonnes per annum of IBA is produced and then processed on site by the removal of ferrous and non-ferrous metal, stabilised and separated into fraction sizes prior to the export from site of the recovered aggregates and metals for re-use. AIR-COOLED CONDENSERS After exiting the turbine, the steam is cooled and condensed back into water through air cooled condensers. This recovered water is collected in the condensate tank, treated and returned to the feedwater system to supply the boiler drum and to produce more steam, thus reducing consumption of mains water. EMISSION CONTROL The flue gases from the incineration of waste are subject to a rigorous cleaning process involving ammonia for removal of Nitrogen Oxides (NOx) by selective non-catalytic reduction (SNCR). A DyNor (Dynamic NOx Reduction system) is used to optimise NOx reduction and reduce ammonia slip by altering the ammonia injection point into the furnace, dependent on the temperature profile, so the injection takes place where the SNCR reaction will be most effective. Lime and powdered activated carbon is injected into the reactor where the lime removes acidic gases such as sulphur dioxide (SO2) and hydrogen chloride (HCL), and the activated carbon removes heavy metals, dioxins and furans. AIR POLLUTION CONTROL RESIDUE (APCR) The cleaned flue gases pass from the reactor through fine-fabric bag filters to remove solid particulates (dust). The bag filters become coated with lime and carbon and provides a further reaction surface increasing the effectiveness of the carbon and lime. When the pressure differential between the inside of the fabric filters becomes too great, a jet of compressed air is used to remove some of the reagents and ash caking the outside of the bag filters. Some of this material is recirculated back into the reactor where atomised water jets reactive the reagents for further use in the reactor. The remaining APCR collected from the bag filter housing contains ash particles from the incineration process, spent lime used in the flue gas treatment, salts and carbon dust. It is transported to and stored in two sealed silo’s until it is tankered away for recovery. CONTINUOUS EMISSIONS MONITORING SYSTEM (CEMS) The flue gases are drawn through the flue gas treatment system by large induction fans which then vent and discharge the treated flue gases to atmosphere via the stacks. A continuous emissions monitoring system is installed on each stack to monitor these emissions. The data is used to make any necessary adjustment to reagent dosing to ensure compliance with permit Emission Limit Values (ELV’s). This data is relayed automatically to the control room and is under close observation by the Operations Team. The CEMS is subject to QAL3 calibration tests (zero and span checks) performed monthly by the maintenance team, and an external contractor carries out annual servicing, calibration and emission testing as required by the permit. | K22: Include summary of key processes and procedures such as (but not limited to); waste reception, control rooms, grate, bed and boiler, energy & heat generation, cooling systems, residue management, emission controls, health and safety systems, maintenance

Sheet Operational Data
A1: =+'Cover Page'!$B$29 -> Annual Performance Report 2025 | E1: =+'Cover Page'!$B$33 -> Severnside Energy Recovery Centre
A3: Operational Data
A4: Plant Size: | B4: 467082 | D4: tonnes pa | J4: Notes:
A5: Nominal net thermal input: | B5: 131 | C5: MWth | J5: * Export capacity = nominal generation capacity at the generator terminals minus nominal parasitic load. ** CHP and district heating plants only - put N/A if no heat export. *** Combusted tonnage = tonnes delivered in period + (tonnes in bunker at start of period – tonnes in bunker at end of period), or equivalent calculation depending on plant type **** Availability Definition: The availability of a line is to be calculated by the number of hours the line reported Continuously Monitored emission levels to the Regulator through the calendar year divided by the total number of hours in that year. The overall plant availability is calculated as the mean of all lines in the plant. For clarity this includes periods of abnormal operation. Rationale: The primary function of an Energy from Waste facility is the disposal of waste. It follows therefore that the availability of a plant is determined by the period of time a facility spends undertaking this activity. *****NCV of waste: This should be completed for all plants which have a boiler. Calculate using total thermal power produced by boiler/boiler efficiency, or other suitable calculation.
A6: Nominal electrical export capacity*: | B6: 39 | C6: MWe
A7: Nominal heat export capacity**: | C7: MWth
A8: No. of combustion lines: | B8: 2 | C8: No. of steam turbines: | E8: 1
A10: Waste types received | B10: Unit | C10: Q1 | D10: Q2 | E10: Q3 | F10: Q4 | G10: Year Total | H10: %
A11: Household / Local Authority | B11: tonnes | C11: 7405 | D11: 8875 | E11: 2747 | F11: 1686 | G11: =SUM(C11:F11) -> 20713 | H11: =IF(G11>0,G11/$G$21,"-") -> 0.05132926261
A12: Commercial & Industrial | C12: 21458 | D12: 8872 | E12: 19515 | F12: 25333 | G12: =SUM(C12:F12) -> 75178 | H12: 0.1862999713
A13: Hazardous | G13: 0 | H13: -
A14: Clinical | G14: 0 | H14: -
A15: Waste wood (biomass) | G15: 0 | H15: -
A16: Refuse Derived Fuel (incl. SRF) - H'hold/LA | C16: 76560 | D16: 79214 | E16: 71601 | F16: 80266 | G16: =SUM(C16:F16) -> 307641 | H16: 0.7623707661
A17: Refuse Derived Fuel (incl. SRF) - C&I | G17: 0 | H17: -
A18: Other [Please specify] | G18: 0 | H18: -
A19: Other [Please specify] | G19: 0 | H19: -
A20: Other [Please specify] | G20: 0 | H20: -
A21: Total waste received | C21: =SUM(C11:C20) -> 105423 | D21: =SUM(D11:D20) -> 96961 | E21: =SUM(E11:E20) -> 93863 | F21: =SUM(F11:F20) -> 107285 | G21: 403532
A22: Rejected Waste | C22: 7.2 | D22: 8.96 | E22: 15.22 | F22: 4.9 | G22: =SUM(C22:F22) -> 36.28 | H22: =IF(G22>0,G22/$G$21,"-") -> 8.990612888e-05
A23: Unprocessed waste transferred out | C23: 218 | D23: 332 | E23: 227.8 | F23: 138 | G23: =SUM(C23:F23) -> 915.8 | H23: =IF(G23>0,G23/$G$21,"-") -> 0.002269460662
A24: Total waste combusted *** | C24: 105198 | D24: 96620 | E24: 93620 | F24: 107142 | G24: =SUM(C24:F24) -> 402580
A26: Energy Usage / Export | B26: Unit | C26: Q1 | D26: Q2 | E26: Q3 | F26: Q4 | G26: Year Total | H26: KWh/te | J26: Password for protected cells A password has been set to prevent accidental editing of cells with formulae. If you still need to make an edit for some reason then the password = 1234
A27: Power generated at generator terminals | B27: MWh | C27: 76523.64 | D27: 71118.34 | E27: 66080.34 | F27: 77046.15 | G27: =SUM(C27:F27) -> 290768.47 | H27: =IF(G27>0,G27*1000/$G$24,"-") -> 722.2625814
A28: Power exported to grid and other external user(s) | C28: 69164.0864 | D28: 63634.8387 | E28: 59538.7533 | F28: 69616.5847 | G28: =SUM(C28:F28) -> 261954.2631 | H28: =IF(G28>0,G28*1000/$G$24,"-") -> 650.6887155
A29: Power imported | C29: 0 | D29: 67.83312 | E29: 198.64176 | F29: 110.61936 | G29: 377.09424 | H29: =IF(G29>0,G29*1000/$G$24,"-") -> 0.9366939242
A30: Indicative parasitic load | B30: % | C30: =IF(C27>0,(C27-C28)/C27,"-") -> 0.09617359551 | D30: =IF(D27>0,(D27-D28)/D27,"-") -> 0.1052260401 | E30: 0.09899444676 | F30: 0.09643006562 | G30: =IF(G27>0,1-G28/(G27+G29),"-") -> 0.1002635957
A31: Thermal Energy Exported ** | G31: =SUM(C31:F31) -> 0 | H31: =IF(G31>0,G31*1000/$G$24,"-") -> -
A32: R1 value (if applicable) | B32: R1 | C32: - | D32: - | E32: - | F32: - | G32: 0.89
A34: Waste Disposal & Recovery | B34: Unit | C34: Q1 | D34: Q2 | E34: Q3 | F34: Q4 | G34: Year Total | H34: % inputs
A35: APC Residues - produced | B35: tonnes | C35: 2548.18 | D35: 2264.46 | E35: 2208.94 | F35: 2458.18 | G35: =SUM(C35:F35) -> 9479.76 | H35: =IF(G35>0,G35/$G$24,"-") -> 0.02354751851
A36: IBA - produced | C36: 28654 | D36: 19698 | E36: 17711 | F36: 17113 | G36: 83176 | H36: =IF(G36>0,G36/$G$24,"-") -> 0.2066073824
A37: Metals recycling | C37: 3509 | D37: 3085 | E37: 2862 | F37: 3190 | G37: =SUM(C37:F37) -> 12646 | H37: 0.03141239008
A38: Other | C38: 0 | D38: 0 | E38: 0 | F38: 0 | G38: =SUM(C38:F38) -> 0 | H38: -
A39: Other | C39: 0 | D39: 0 | E39: 0 | F39: 0 | G39: 0 | H39: -
A40: Other | C40: 0 | D40: 0 | E40: 0 | F40: 0 | G40: 0 | H40: -
A42: Raw Material Usage | B42: Unit | C42: Q1 | D42: Q2 | E42: Q3 | F42: Q4 | G42: Year Total | H42: Qty./te
A43: Mains Water | B43: ltrs | C43: 14581000 | D43: 21949000 | E43: 13049000 | F43: 14080000 | G43: =SUM(C43:F43) -> 63659000 | H43: =IF(G43>0,G43/$G$24,"-") -> 158.1275771
A44: Other Water | B44: ltrs | G44: 0 | H44: =IF(G44>0,G44/$G$24,"-") -> -
A45: Ammonia | B45: kgs | C45: 193150 | D45: 185595 | E45: 255233 | F45: 322621 | G45: 956599 | H45: 2.376171196
A46: Urea | B46: kgs | G46: =SUM(C46:F46) -> 0 | H46: -
A47: Activated Carbon | B47: kgs | C47: 19713 | D47: 17789 | E47: 16199 | F47: 18508 | G47: 72209 | H47: 0.1793655919
A48: Lime / hydrated lime | B48: kgs | C48: 843221 | D48: 800813 | E48: 720184 | F48: 821377 | G48: 3185595 | H48: 7.912948979
A49: Fuel oil | B49: ltrs | C49: 293600 | D49: 75835 | E49: 206464 | F49: 172435 | G49: 748334 | H49: 1.858845447
A50: Gas | B50: m3 | G50: 0 | H50: -
A51: Other | G51: 0 | H51: -
A53: Summary | B53: Line/Unit | C53: Q1 | D53: Q2 | E53: Q3 | F53: Q4 | G53: Year Total | I53: Hrs in year
A54: Availability of waste combustion by line, hrs **** | B54: 1 | C54: 2025.51 | D54: 1878.83 | E54: 1921.67 | F54: 2014.91 | G54: =SUM(C54:F54) -> 7840.92 | H54: =+G54/$I$54 -> 0.8950821918 | I54: 8760 | J54: Change this figure to 8784 in a leap year
B55: 2 | C55: 2048.59 | D55: 1964.92 | E55: 1699 | F55: 2095.75 | G55: 7808.26 | H55: =+G55/$I$54 -> 0.8913538813
B56: 3 | G56: 0 | H56: 0
B57: 4 | G57: 0 | H57: 0
B58: 5 | G58: =SUM(C58:F58) -> 0 | H58: 0
A59: Hours of turbine operations, hrs | B59: 1 | C59: 2160 | D59: 2080.58 | E59: 1920.83 | F59: 2122.01 | G59: 8283.42 | H59: 0.9455958904
A60: Hours of turbine operations, hrs | B60: 2 | G60: 0 | H60: 0
A61: Hours of heat / steam export** | B61: hours | G61: 0 | H61: =IF(B61>0,G60/I54,"n/a") -> 0
A62: Net calorific value of waste***** | B62: MJ/kg | C62: 9.1 | D62: 9.14 | E62: 9.21 | F62: 9.13 | G62: =AVERAGE(C62:F62) -> 9.145
A63: Abnormal operation events | B63: qty. | C63: 1 | D63: 1 | E63: 0 | F63: 0 | G63: 2 | H63: =IF(G63>0,"yes","no") -> yes
A64: Abnormal operation duration | B64: hours | C64: 4.5 | D64: 2.5 | E64: 0 | F64: 0 | G64: 7 | H64: =+(G64)/I54 -> 0.000799086758
A65: Permit Breaches | B65: qty. | C65: 0 | D65: 4 | E65: 0 | F65: 0 | G65: 4 | H65: =IF(G65>0,"yes","no") -> yes

Sheet Operational Summary
A1: =+'Cover Page'!$B$29 -> Annual Performance Report 2025 | E1: =+'Cover Page'!$B$33 -> Severnside Energy Recovery Centre
A3: Summary of Plant Operations and Maintenance during the reporting year | K3: Notes:
A5: Over the 2025 calendar year, the plant experienced improved production figures due to a higher availability than in 2024, resulting 401,922 tonnes of waste being combusted and 290,768 MWh of electricity being generated. Significant work was carried out around the identification and removal of non-conforming waste, as well as the site's robustness against any impacts; including further measures around supplier control, AI-assisted detection and modifications to the site's bottom ash drop-off chutes. The annual maintenance outage was undertaken on both lines and the common systems (including steam turbine) in summer 2025. In addition to the typical scope of works and inspections, the major activities included boiler tube panel replacements on both lines (bullnose area for L1 and pass 1/2 dividing wall, upper header level for L2), bottom ash extractor chain replacement on L2 and full baghouse filter replacement and adjustment of chamber shut-off dampers on L2. New projects also included the bottom ash drop-off chute modifications, installation of new boiler pressure testing points, ACC structural reinforcement improvements and biogenic C14 analysers and stackflow 200 probes. | K5: Include summary of key operational and/or maintenance activity undertaken in the year, such as any major component upgrades and/or replacements
A29: =+'Cover Page'!C39 -> 2025 | B29: Plant shut-downs
A30: Start date | B30: End date | C30: Reason for shut-down | K30: Provide a very brief reason for plant shut-down e.g. "Shut-down prior to major outage"; "Emergency shut-down due to boiler tube leak". All emergency shut-downs must be listed (irrespective of whether or not they were required to be reported to the EA). There is no need to include periods of hot-standby here (e.g. to clear feed chute hopper blockages). For clinical waste incinerators which require regular shut-downs for boiler cleaning, there is no need to record these here (only those prior to major outages, and emergency shut-downs).
A31: 2025-01-02 | B31: 2025-01-03 | C31: L2 Bottom Ash Drop-off Chute Blockage
A32: 2025-01-07 | B32: 2025-01-08 | C32: L2 Bottom Ash Drop-off Chute Blockage
A33: 2025-01-16 | B33: 2025-01-17 | C33: L1 Bottom Ash Drop-off Chute Blockage
A34: 2025-01-18 | B34: 2025-01-19 | C34: L2 Bottom Ash Drop-off Chute Blockage
A35: 2025-01-20 | B35: 2025-01-21 | C35: L1 Bottom Ash Drop-off Chute Blockage
A36: 2025-01-31 | B36: 2025-01-31 | C36: L2 Bottom Ash Drop-off Chute Blockage
A37: 2025-02-03 | B37: 2025-02-04 | C37: L2 Bottom Ash Drop-off Chute Blockage
A38: 2025-02-26 | B38: 2025-02-27 | C38: L1 Bottom Ash Drop-off Chute Blockage
A39: 2025-02-28 | B39: 2025-03-01 | C39: L2 Bottom Ash Drop-off Chute Blockage
A40: 2025-03-07 | B40: 2025-03-11 | C40: L1 Bottom Ash Extractor Chain Conveyor Failure (and Total Replacement)
A41: 2025-03-19 | B41: 2025-03-19 | C41: L2 Waste Feeding Stop due to Poor Combustion
A42: 2025-05-07 | B42: 2025-05-09 | C42: L1 Baghouse Filter Failure (Loss of Bag and Cage)
A43: 2025-05-30 | B43: 2025-06-03 | C43: L2 Shutdown for Planned Outage (Grate Repairs)
A44: 2025-06-20 | B44: 2025-07-11 | C44: L1 Shutdown for Planned Outage (Annual Works)
A45: 2025-06-26 | B45: 2025-06-26 | C45: Common Plant HV Trip (External Grid Fault)
A46: 2025-06-27 | B46: 2025-07-21 | C46: L2 Shutdown for Planned Outage (Annual Works)
A47: 2025-07-11 | B47: 2025-07-12 | C47: L1 Bottom Ash Belt Diverter Flap Failure
A48: 2025-08-02 | B48: 2025-08-03 | C48: L1 Reactor Residue Transport System Blockages
A49: 2025-08-06 | B49: 2025-08-07 | C49: L1 Reactor Residue Transport System Blockages
A50: 2025-08-13 | B50: 2025-08-13 | C50: L2 Boiler to Bottom Ash Screw Conveyor Failure
A51: 2025-08-14 | B51: 2025-08-14 | C51: L2 Ammonium Supply Issues
A52: 2025-08-16 | B52: 2025-08-16 | C52: Common Plant Electrical Trip due to Common 1 Incomer/UPS Fault
A53: 2025-08-16 | B53: 2025-08-16 | C53: Common Plant Electrical Trip due to Common 1 Incomer/UPS Fault
A54: 2025-10-30 | B54: 2025-10-31 | C54: L1 Bottom Ash Drop-off Chute Blockage
A55: 2025-11-12 | B55: 2025-11-13 | C55: L1 Boiler to Bottom Ash Screw Conveyor Failure
A56: 2025-11-22 | B56: 2025-11-26 | C56: L1 Shutdown for Planned Outage (Grate Repairs)
A57: 2025-11-23 | B57: 2025-11-28 | C57: L2 Shutdown for Planned Outage (Grate Repairs)
A58: 2025-11-26 | B58: 2025-11-26 | C58: L1 Waste Cranes 1 & 2 Failure
A59: 2025-12-04 | B59: 2025-12-04 | C59: L1 Waste Feed Hopper Blockage
A60: 2025-12-10 | B60: 2025-12-11 | C60: L1 Bottom Ash Drop-off Chute Blockage

Sheet Perf. Form 1
A1: =+'Cover Page'!C39 -> 2025 | B1: Annual Reporting Performance Form 1
A3: =+'Cover Page'!B31 -> Permit EPR/ZP3937KL | F3: Operator: | G3: =+'Cover Page'!B37 -> SUEZ Recycling and Recovery UK Ltd
A4: Facility: | B4: =+'Cover Page'!B33:I33 -> Severnside Energy Recovery Centre | F4: Form: | G4: Performance 1
A6: Reporting Period from: | D6: 2025-01-01 | F6: to: | G6: 2025-12-31
A8: =+A1 -> 2025 | B8: Annual Reporting of Waste Disposal and Recovery
A9: Waste Description | C9: Disposal Route(s) | E9: Disposal Tonnes | G9: Recovery Tonnes | I9: % / tonne of waste incinerated
A10: 1) Hazardous Wastes
A11: APC Residues | C11: D05/R05 | E11: 211.58 | G11: 9268.18 | I11: =IF((E11+G11)>0,(E11+G11)/'Operational Data'!$G$24, "-") -> 0.02354751851
A12: IBA | I12: =IF((E12+G12)>0,(E12+G12)/'Operational Data'!$G$24, "-") -> -
I13: =IF((E13+G13)>0,(E13+G13)/'Operational Data'!$G$24, "-") -> -
I14: =IF((E14+G14)>0,(E14+G14)/'Operational Data'!$G$24, "-") -> -
A15: Total Hazardous Waste | E15: =SUM(E11:F14) -> 211.58 | G15: =SUM(G11:H14) -> 9268.18 | I15: =IF((E15+G15)>0,(E15+G15)/'Operational Data'!$G$24, "-") -> 0.02354751851
A17: 2) Non-Hazardous Wastes
A18: IBA | C18: R10 | G18: ='Operational Data'!G36 -> 83176 | I18: =IF((E18+G18)>0,(E18+G18)/'Operational Data'!$G$24, "-") -> 0.2066073824
A19: Ferrous Metal | C19: R04 | G19: 7070 | I19: =IF((E19+G19)>0,(E19+G19)/'Operational Data'!$G$24, "-") -> 0.01756172686
A20: Process Water | C20: D09 | E20: 278 | I20: =IF((E20+G20)>0,(E20+G20)/'Operational Data'!$G$24, "-") -> 0.0006905459784
A21: Non-Ferrous Metal | C21: R04 | G21: 5576 | I21: =IF((E21+G21)>0,(E21+G21)/'Operational Data'!$G$24, "-") -> 0.01385066322
I22: =IF((E22+G22)>0,(E22+G22)/'Operational Data'!$G$24, "-") -> -
A23: Total Non-Hazardous Waste | E23: =SUM(E18:F22) -> 278 | G23: =SUM(G18:H22) -> 95822 | I23: =IF((E23+G23)>0,(E23+G23)/'Operational Data'!$G$24, "-") -> 0.2387103184
A24: TOTAL WASTE | E24: =+E23+E15 -> 489.58 | G24: =+G23+G15 -> 105090.18 | I24: =IF((E24+G24)>0,(E24+G24)/'Operational Data'!$G$24, "-") -> 0.262257837
A26: Operator’s comments :
A31: =+A1 -> 2025 | B31: Annual Reporting of Water and Other Raw Material Usage
A32: Raw Material | E32: Usage | G32: Unit | H32: Specific Usage | J32: Unit
A33: Mains Water | E33: =+'Operational Data'!G43/1000 -> 63659 | G33: m3 | H33: =IF(E33>0,E33/'Operational Data'!$G$24,"-") -> 0.1581275771 | J33: m3/te
A34: Total Water | E34: =+('Operational Data'!G44+'Operational Data'!G43)/1000 -> 63659 | G34: m3 | H34: =IF(E34>0,E34/'Operational Data'!$G$24,"-") -> 0.1581275771 | J34: m3/te
A35: Urea / Ammonia | E35: =+'Operational Data'!G45 -> 956599 | G35: kg | H35: =IF(E35>0,E35/'Operational Data'!$G$24,"-") -> 2.376171196 | J35: kg/te
A36: Activated Carbon | E36: =+'Operational Data'!G47 -> 72209 | G36: kg | H36: =IF(E36>0,E36/'Operational Data'!$G$24,"-") -> 0.1793655919 | J36: kg/te
A37: Lime / hydrated lime / Sodium Bicarb. | E37: =+'Operational Data'!G48 -> 3185595 | G37: kg | H37: =IF(E37>0,E37/'Operational Data'!$G$24,"-") -> 7.912948979 | J37: kg/te
A39: Operator’s comments :
A43: =+A31 -> 2025 | B43: Annual Reporting of other performance indicators
A44: Parameter | C44: Results by Line
C45: A1 | D45: A2 | E45: A3 | F45: A4 | G45: A5 | I45: Turbine 1 | J45: Turbine 2
A46: Operating hours for the year, hours | C46: ='Operational Data'!G54 -> 7840.92 | D46: ='Operational Data'!G55 -> 7808.26 | I46: ='Operational Data'!G59 -> 8283.42
A47: Number of periods of abnormal operation, qty. | C47: 0 | D47: 1
A48: Cumulative hours of abnormal operation for this year, hours | C48: 0 | D48: 4.5
A50: Operator’s comments :
A54: Signed: | B54: Richard Watkins | G54: Date: | H54: 2026-01-19

Sheet Energy Form 1
A1: =+'Cover Page'!C39 -> 2025 | B1: Annual Reporting of Energy Usage/Export
A3: =+'Cover Page'!B31 -> Permit EPR/ZP3937KL | F3: Operator: | G3: =+'Cover Page'!B37 -> SUEZ Recycling and Recovery UK Ltd
A5: Facility: | B5: =+'Cover Page'!B33:I33 -> Severnside Energy Recovery Centre | F5: Form: | G5: Energy 1
A7: Reporting Period from: | D7: =+'Perf. Form 1'!D6:E6 -> 2025-01-01 | F7: to: | G7: =+'Perf. Form 1'!G6:H6 -> 2025-12-31
A9: Energy Source | D9: Energy Usage | F9: Unit | G9: Specific Usage (KWh/tonne incinerated
A10: Electricity Produced | D10: =+'Operational Data'!G27 -> 290768.47 | F10: MWh | G10: =+'Operational Data'!H27 -> 722.2625814
A11: Electricity Imported | D11: =+'Operational Data'!G29 -> 377.09424 | F11: MWh | G11: =+'Operational Data'!H29 -> 0.9366939242
A12: Electricity Exported | D12: =+'Operational Data'!G28 -> 261954.2631 | F12: MWh | G12: =+'Operational Data'!H28 -> 650.6887155
A13: Gas Oil | D13: =('Operational Data'!G49*(10^-6))*834.39 -> 624.4024063 | F13: tonnes | G13: =(D13*42800*1000*(1/3600))/'Operational Data'!G24 -> 18.43969107
A14: Steam/hot water exported | D14: =+'Operational Data'!G31 -> 0 | F14: GWh | G14: =+'Operational Data'!H31 -> -
A18: Operator’s comments :
A19: Density value of 834 kg.m-3 used to convert gas oil litres to tonnes (average derived from weighbridge weight and consignment notes). Net Calorific Value (NCV) of 42,800 kJ.kg-1 used for gas oil
A29: Signed: | B29: Richard Watkins | G29: Date: | H29: 2026-01-19

Sheet Permit Compliance
A1: =+'Cover Page'!$B$29 -> Annual Performance Report 2025 | E1: =+'Cover Page'!$B$33 -> Severnside Energy Recovery Centre
A3: Summary of Permit Compliance
A5: Compliance with permit limits for continuously monitored pollutants
A7: The plant met its emission limits as shown in the table below:
A8: Substance | C8: Percentage time compliant during operationNote 1 | K8: Notes:
C9: Half-hourly limit | F9: Daily limit | K9: Note 1: Please report to 2 decimal places, i.e. xx.xx% Note 2: Please enter into this table any permit non-compliances that the EA has given a CCS score for. Please also enter any other non-compliances which you have notified to the EA (e.g. ELV exceedances) but which have not yet been assessed by the EA. There is no need to enter any notifications which were subsequently assessed by the EA not to be permit breaches. Note 3: Please enter information here (rather than just referencing the notifications that were sent to the EA) including where relevant the incineration line reference, pollutant and value of the measured result for any ELV exceedances.
A10: Particulates | C10: 0.9999 | F10: 1
A11: Oxides of nitrogen | C11: 1 | F11: 1
A12: Sulphur dioxide | C12: 1 | F12: 1
A13: Carbon monoxide | C13: 100.00% (95% of 10-min averages) | F13: 1
A14: Total organic carbon | C14: 1 | F14: 1
A15: Hydrogen chloride | C15: 1 | F15: 1
A16: Ammonia | C16: N/A | F16: 1
C17: 1 | F17: 1
A19: Summary of non-compliances under the permit Note 2
A20: Date | B20: Summary of non-compliance Note 3 | D20: Reason | G20: Measures taken to prevent reoccurrence | H20: CCS score if applicable*
H21: Impact | I21: Root cause
A22: 2025-05-07 | B22: Dust 1/2 hourly ELV breach (x4) | D22: Bag filter damaged/lost due to failed cage support | G22: Revised lifecycle replacement strategy for filter bag cages implemented
A27: *If the Environment Agency (EA) has given a Compliance Classification Scheme (CCS) score due to a permit non-compliance it should be entered here (CCS4 = No impact; CCS3 = Minor impact; CCS2 = Significant impact; CCS1 = Major impact). If the EA has not yet assessed a non-compliance which you have notified to them, these columns should be left blank. Enter N/A if no score was given for the root cause.
A29: Summary of any complaints received and actions to taken to resolve them.
A30: Date | B30: Summary of complaint [including Line/Reference] | E30: Reason (including whether substantiated by the operator or the EA) | H30: Measures taken to prevent reoccurrence

Sheet Improvements
A1: =+'Cover Page'!$B$29 -> Annual Performance Report 2025 | E1: =+'Cover Page'!$B$33 -> Severnside Energy Recovery Centre
A3: Summary of Plant Improvements
A5: Summary of any efficiency improvements that have been completed within the year.
A6: Replacement and upgrade of all grate riddling chute expansion joints and flow sleeves (42 No.), where the improved gas-tightness allows for a reduction of air ingress into the process, hence also the overall flue gas volume and parasitic ID fan power consumption. Similarly, increased levels of plating works carried out on the FGT subprocesses have also contributed towards this.
A16: Summary of any permit improvement conditions that have been completed within the year and the resulting environmental benefits.
A17: N/A
A27: Summary of any changes to the plant or operating techniques which required a variation to the permit and a summary of the resulting environmental impact.
A28: N/A
A38: Summary of any other improvements made to the plant or planned to be made and a summary of the resulting environmental benefits.
A39: Comprehensive works carried out on BHF chamber isolation dampers on Line 2 in Summer 2025 outage, increasing the ability of the site to successfully isolate a compartment whilst online and hence carry out any remedial works against any failed filters, reducing the likelihood around any TPM exceedances. Biogenic Carbon-14 monitoring system (Envea AMESA-B) installed to allow for more accurate estimation and reporting of biogenic CO2 emissions as part of ETS requirements (vs periodic sampling and testing of waste). New Stackflow 200 sensors also installed for redundnacy, allowing for an additional MCERTS accredited measurement that can be used for the site's control systems as well as flow and mass emissions reporting.

Sheet Public Liasion
A1: =+'Cover Page'!$B$29 -> Annual Performance Report 2025 | E1: =+'Cover Page'!$B$33 -> Severnside Energy Recovery Centre
A3: Details of Public & Stakeholder Liaison
A5: Summary of events held during the reporting year.
A6: Date | C6: Description
A7: 2025-07-01 | C7: Lower Severn Drainage board attended site and cleared out the Rhine (water course) which runs through the facility
A9: 2025-01-01 | C9: Severnet Breakfast event providing an overview of the process to a local buisness networking event
A11: Several dates | C11: Site tours held for Internal and external stakeholders
A16: List of events planned for next year
A17: Date | C17: Description
A18: 2026-07-01 | C18: Lower Severn Drainage board due to site to clear out the Rhine which run through the facility
A29: If you wish to be involved in the public liaison programme, please contact _________________

Sheet CO2 N2O
A1: =+'Cover Page'!$B$29 -> Annual Performance Report 2025 | C1: =+'Cover Page'!$B$33 -> Severnside Energy Recovery Centre
A3: Carbon dioxide emissions and biogenic content of waste inputs | F3: Notes:
A5: Carbon dioxide emissions (all types of plant)
B6: Annual mass of carbon dioxide released | C6: tonnes | D6: 371725.9
B7: Annual mass of carbon dioxide released per tonne of waste burned | C7: t CO2 / t waste | D7: =D6/'Operational Data'!G24 -> 0.9233590839 | F7: Note 1: All permits require operators to continuously monitor CO2 to EN14181 and flow to BS EN 16911-2 (unless otherwise agreed in writing). Operators must therefore use the results from these instruments to calculate their annual CO2 emissions. Where an operator does not have a flow meter calibrated to BS EN 16911-2, the averaged flow measurement from that year's periodic monitoring can be used instead. If the plant does not have calibrated CO2 CEMS, a suitably justified emissions factor can be used.
B8: Annual mass of carbon dioxide released per MWh of energy exported | C8: t CO2 / MWh export | D8: =D6/'Operational Data'!G28 -> 1.419048866
B9: Description of how annual carbon dioxide mass emission has been calculated. See Note 1 | C9: Annual Mass Emissions Report from CEMS DAHS (using CO2 mg/m3 data on 30-min avg. basis and duty Stackflow readings) - checked against manual calculations using operating hours and also CO2 vol% data
A10: Nitrous oxide emissions (only plants which use ammonia or urea to abate NOx emissions)
B11: Annual mass emissions of nitrous oxide | C11: tonnes N2O | D11: 1
B12: Description of how annual nitrous oxide mass emission has been calculated See Note 2 | C12: Annual Mass Emissions Report from CEMS DAHS (using N2O mg/m3 data on 30-min avg. basis and duty Stackflow readings) | F12: Note 2: All permits require operators to continuously monitor N2O to EN14181 and flow to BS EN 16911-2, unless otherwise agreed in writing. Operators must therefore use the results from these instruments to calculate their annual N2O emissions. Where an operator does not have a flow meter calibrated to BS EN 16911-2, the averaged flow measurement from periodic monitoring can be used instead. If the plant does not have calibrated N2O CEMS, data from periodic monitoring or a suitably justified emissions factor can be used instead.
B13: Total annual carbon dioxide + nitrous oxide emissions. See Note 3. | C13: tonnes CO2e | D13: =D6+(265*D11) -> 371990.9 | F13: Note 3: Total annual carbon dioxide and nitrous oxide emissions reported as carbon dioxide equivalent where 1 tonne nitrous oxide is equivalent to 265 tonnes carbon dioxide.
A14: Biogenic CO2 emissions (See Note 4) | F14: Note 4: Only plants combusting residual municipal waste, refuse derived fuel or solid recovered fuel need complete this section.
B15: Percentage of total carbon dioxide emissions arising from biogenic waste | C15: % | D15: 0.585
B16: No. of measurements undertaken | C16: Number | D16: 10 (5 per line)
B17: Description of how percentage biogenic carbon dioxide emissions have been measured or calculated. See Note 5 | C17: Average of the quoted figures on the radiocarbon (C14) reports from the AMESA-B Biogenic Carbon Sampling | F17: Note 5: The results from C14 sampling should be used if this is carried out at the plant (either via an installed sampler or from spot samples). Otherwise, as an approximation (and in lieu of any more accurate metrics which may be developed in future), the measured or estimated biogenic fraction by net calorific value (see Note 6) can be assumed to be the same as the biogenic CO2 fraction of the total CO2 emissions from the plant.
A18: Biogenic fraction of waste feedstock (See Note 4)
B19: Yearly average biogenic percentage of the waste by net calorific value (NCV) | C19: % | D19: 0.4954
B20: Description of how biogenic percentage (by NCV) has been calculated or estimated. See Note 6 | C20: Determined from the annual waste analysis report (March 2025), based on the qualifying proportion | F20: Note 6: If C14 sampling is carried out at the plant, the methodology set out in the embedded document entitled "Renewable Energy Association Energy Content of Fuels - Description of Method" embedded below can be used to calculate the biogenic percentage by net calorific value. Otherwise, data from waste sampling or BIOMA software can be used; or if none of these are available, an estimated figure with justification or a figure assumed on the basis of up-to-date industry data can be used.
B21: Yearly average biogenic percentage of the waste by mass | C21: % | D21: 0.5662710327
B22: If waste sampling undertaken, no. of samples used to ascertain average biogenic percentages above | C22: Number | D22: 1
B23: Description of how biogenic percentage (by mass) has been calculated or estimated. See Note 7 | C23: Calculated from the annual waste analysis report (March 2025) and biogenic fraction for each waste type taken from DEFRA 2014 energy recovery for residual waste, a carbon based modelling approach. | F23: Note 7: Where available, data from waste sampling should be used; otherwise, an estimated figure with justification can be used, or a figure assumed on the basis of up-to-date industry data.
B25: Comments:

Sheet Residues
A1: =+'Cover Page'!$B$29 -> Annual Performance Report 2025 | E1: =+'Cover Page'!$B$33 -> Severnside Energy Recovery Centre
A3: Summary of Residue Handling for the reporting year
A5: IBA is the main residue by volume/weight associated with the burning of waste for energy generation. The IBA is the heavy ash produced by the combustion process that is discharged from the bottom of the furnace grate and the fine ash that passes through the moving grate to the bottom ash tank. The IBA at Suffolk represents approximately 21% of the annual mass of waste that is thermally treated by the incineration process. The plant therefore can produce up to 100,000 tonnes of IBA per annum. APCR is the boiler ash that is produced in the furnace that is light enough to be carried through the boiler entrained in the flue gases. As it passes through the flue gas treatment (FGT) process, lime and carbon is added as part of the treatment process to remove acidic gases, heavy metals and other hazardous products of the combustion process including dioxins and furans. This boiler ash combined with these reagents in FGT is referred to as Air Pollution Control Residue. APCR at Suffolk EfW represents up to 2.5% of the annual mass of waste that is thermally treated by the incineration process. The plant therefore can produce up to 12,000 tonnes of APCR per annum. IBA is sampled every two weeks for laboratory analysis and this is carried out in accordance with Environment Agency waste classification guidance. The two weekly samples include a partial hazard assessment, a further sample is carried out annually for full hazard assessment. This analysis and assessment is carried out to confirm the ongoing non-hazardous status of the IBA material. Additional sampling and analysis is carried out quarterly in line with permit requirements. The only emission limit value applied to the IBA is a 3% TOC limit. APCR analysis is carried out quarterly in line with permit requirements. Additional analysis of APCR was carried out during 2025 to udnertake a full hazard assessment to identify the hazard properties for this residue. The IBA is treated by the onsite IBA recycling plant, operated by Blue Phoenix, to extract ferrous and non-ferrous metal for recycling, and to produce an IBA aggregate material to replace the use of virgin aggregate in construction projects. All APCR material is treated for further use. It is removed from site and treated by Castle Environment at their site in Ilkeston. The material is cleaned by their acid neutralisation process to reduce lime alkalinity to produce a non-hazardous solid filter cake. This process allows the material to achieve non-hazardous status and then it is re-used in land remediation where the residual lime can effectively remediate acidic land contamination from colliery spoils for example. | K5: Include in here a summary of residue handling regimes and destinations
A28: Residue Quality Monitoring Requirements
A30: Summary of monitoring undertaken and compliance
A31: The samples for the quarterly IBA analyis were undertaken on 11/02/2025, 23/04/2025, 31/07/2025, and 23/10/2025.
A33: There were no issues identified by the analysis and all results for TOC were below the permit limit. LOI analysis is not required as TOC analysis is provided.
A38: Commentary on any specific events
A39: Date & Event | C39: Description
A52: Residue Quality Monitoring Results
A53: Parameter (unit) | C53: Limit* | D53: Normal Operation
D54: Bottom ash | F54: APC Residues
A55: Loss on Ignition (average %) | C55: <5% | D55: N/A
A56: Total Organic Carbon (average %) | C56: <3% | D56: 0.53
A57: No. of Assessments Undertaken | C57: --- | D57: 4 | F57: 4
A58: No. of Hazardous Results | C58: --- | D58: 0
A59: * The permit will specify a limit of either 5% loss on ignition or 3% total organic carbon. If both are measured anyway, please enter the results here, even where the limit does not apply.
A61: Comments :
A62: 11/02/2025 IBA Sample - TOC = 0.368 23/04/2025 IBA Sample - TOC = 0.693 31/07/2025 IBA Sample - TOC = 0.515 23/10/2025 IBA Sample - TOC = 0.552 Average = 0.53%

Sheet Water
A1: =+'Cover Page'!$B$29 -> Annual Performance Report 2025 | E1: =+'Cover Page'!$B$33 -> Severnside Energy Recovery Centre
A3: Emissions to Water
A5: Summary of monitoring undertaken and compliance
A6: W1 is the emission point from the Surface Water Management System to the Red Rhine via the swale. No discharge was observed from this emission point during the reporting period.
A8: W2 is the emission point from the railhead drainage system to the Red Rhine.
A10: W3 is the emission point for overflow from the clean rainwater and firewater tanks to the Red Rhine.
A13: Commentary on any specific events
A14: Date & Event | C14: Description
A15: 2025-01-27 | C15: W2 rail drainage discharge to Red Rhine observed and sample taken
A17: 2025-08-18 | C17: W3 clean rainwater tank and fire water tank overflow discharge to Red Rhine observed and sample taken.
A19: 2025-11-11 | C19: W3 clean rainwater tank and fire water tank overflow discharge to Red Rhine observed and sample taken.
A22: Emissions to Water / Sewer
A23: Parameter | D23: Monitoring Frequency | F23: Limit | G23: Target | H23: Max. | I23: Average
A24: Suspended solids | D24: W2 monthly | F24: 30 mg/l | H24: < 5 | I24: < 5
A25: Oil | D25: W2 monthly | F25: 5 mg/l | H25: 0.03 | I25: 0.03
A26: Oil | D26: W2 monthly | F26: No visible oil | H26: 0 | I26: 0

Sheet Air (periodic)
A1: =+'Cover Page'!$B$29 -> Annual Performance Report 2025 | E1: =+'Cover Page'!$B$33 -> Severnside Energy Recovery Centre
A3: Emissions to Air (periodically monitored)
A5: Summary of monitoring undertaken, standards used and compliance | K5: Notes:
A6: Emissions monitoring campaigns (H1 & H2) are at 6 monthly intervals. The H1 monitoring was completed between the 18th and 21st February 2025. The H2 monitoring was completed between the 1st and 2nd September 2025. | K6: Template may require adjustment for any bespoke monitoring requirements of permit - please also check that all default ELV values, reference periods and the stated oxygen reference value match those for your plant, and edit if necessary!
A9: Results of emissions to air that are periodically monitored - oxygen reference 11%
A10: Substance | C10: Ref. Period | D10: Emission Limit Value | F10: Average | K10: User to add additional tables as necessary, depending on whether quarterly or bi-annual reporting is required for the compliance year
F11: A1 | G11: A2 | H11: A3 | I11: A4 | J11: A5
A12: Hydrogen fluoride | C12: 1 hr | D12: 1 mg/m3 | F12: 0.08666666667 | G12: 0.06666666667
A13: Cd and Tl and their compounds | C13: 0.5-8hrs | D13: 0.02 mg/m3 | F13: 0.001316666667 | G13: 0.0016
A14: Hg and its compounds | C14: 0.5-8hrs | D14: 0.02 mg/m3 | F14: 0.0005166666667 | G14: 0.001266666667
A15: Sb, As, Pb, Cr, Co, Cu, Mn, Ni, V and their compounds | C15: 0.5-8hrs | D15: 0.3 mg/m3 | F15: 0.01056666667 | G15: 0.01453333333
A16: Dioxins & Furans (I-TEQ) | C16: 6-8hrs | D16: 0.06 ng/m3 | F16: 0.001705 | G16: 0.00445
A17: PCBs (WHO-TEQ Humans / Mammals) | C17: 6-8hrs | D17: None set ng/m3 | F17: 0.000145 | G17: 0.0006
A18: PCBs (WHO-TEQ Fish) | C18: 6-8hrs | D18: None set ng/m3 | F18: 7e-06 | G18: 3e-05
A19: PCBs (WHO-TEQ Birds) | C19: 6-8hrs | D19: None set ng/m3 | F19: 0.000515 | G19: 0.002
A20: Dioxins & Furans (WHO-TEQ Humans / Mammals) | C20: 6-8hrs | D20: None set ng/m3 | F20: 0.001715 | G20: 0.0041
A21: Dioxins & Furans (WHO-TEQ Fish) | C21: 6-8hrs | D21: None set ng/m3 | F21: 0.001705 | G21: 0.0045
A22: Dioxins & Furans (WHO-TEQ Birds) | C22: 6-8hrs | D22: None set ng/m3 | F22: 0.003705 | G22: 0.00935
A23: Anthanthrene | C23: 6-8hrs | D23: None set µg/m3 | F23: 0.0013 | G23: 0.00139
A24: Benzo(a)anthracene | C24: 6-8hrs | D24: None set µg/m3 | F24: 0.002 | G24: 0.00139
A25: Benzo(a)pyrene | C25: 6-8hrs | D25: None set µg/m3 | F25: 0.0013 | G25: 0.00139
A26: Benzo(b)fluoranthene | C26: 6-8hrs | D26: None set µg/m3 | F26: 0.0016 | G26: 0.00139
A27: Benzo(b)naptho(2,1-d) thiophene | C27: 6-8hrs | D27: None set µg/m3 | F27: 0.0014 | G27: 0.00205
A28: Benzo(c)phenanthrene | C28: 6-8hrs | D28: None set µg/m3 | F28: 0.0013 | G28: 0.00139
A29: Benzo(ghi)perylene | C29: 6-8hrs | D29: None set µg/m3 | F29: 0.0081 | G29: 0.00139
A30: Benzo(k)fluoranthene | C30: 6-8hrs | D30: None set µg/m3 | F30: 0.0013 | G30: 0.00139
A31: Cholanthrene | C31: 6-8hrs | D31: None set µg/m3 | F31: 0.0013 | G31: 0.00139
A32: Chrysene | C32: 6-8hrs | D32: None set µg/m3 | F32: 0.0024 | G32: 0.0019
A33: Cyclopenta(cd)pyrene | C33: 6-8hrs | D33: None set µg/m3 | F33: 0.0013 | G33: 0.00139
A34: Dibenzo(ai)pyrene | C34: 6-8hrs | D34: None set µg/m3 | F34: 0.0013 | G34: 0.00139
A35: Dibenzo(ah)anthracene | C35: 6-8hrs | D35: None set µg/m3 | F35: 0.0013 | G35: 0.00139
A36: Fluoranthene | C36: 6-8hrs | D36: None set µg/m3 | F36: 0.0396 | G36: 0.04269
A37: Indeno(123-cd) pyrene | C37: 6-8hrs | D37: None set µg/m3 | F37: 0.0013 | G37: 0.00139
A38: Naphthalene | C38: 6-8hrs | D38: None set µg/m3 | F38: 0.3503 | G38: 0.37226
A39: Comments :
A40: Results are exressed as the average of the two values recorded in the 6-monthly emissions monitoring campaigns. Results highlighted in bold were recorded as < lab limit of detection so have been expressed as the average of 2 LOD value. PAH's are sampled only annually so the results reported in bold were reported at the Lab Limit of Detection (< removed).
A44: Substance | C44: Ref. Period | D44: Emission Limit Value | F44: Average
F45: A1 (H1) | G45: A1 (H2) | H45: A2 (H1) | I45: A2 (H2)
A46: Hydrogen fluoride | C46: 1 hr | D46: 1 mg/m3 | F46: < 0.07 | G46: 0.11 | H46: < 0.06 | I46: 0.08 | J46: =AVERAGE(0.07,0.11) -> 0.09 | K46: =AVERAGE(0.06,0.09) -> 0.075
A47: Cd and Tl and their compounds | C47: 0.5-8hrs | D47: 0.02 mg/m3 | F47: < 0.0012 | G47: < 0.0014 | H47: < 0.0017 | I47: < 0.0014 | J47: =AVERAGE(0.0012,0.0014) -> 0.0013 | K47: =AVERAGE(0.0017,0.0014) -> 0.00155
A48: Hg and its compounds | C48: 0.5-8hrs | D48: 0.02 mg/m3 | F48: 0.0004 | G48: 0.0006 | H48: 0.001 | I48: 0.0016 | J48: =AVERAGE(F48:G48) -> 0.0005 | K48: =AVERAGE(H48:I48) -> 0.0013
A49: Sb, As, Pb, Cr, Co, Cu, Mn, Ni, V and their compounds | C49: 0.5-8hrs | D49: 0.3 mg/m3 | F49: 0.011 | G49: 0.0106 | H49: 0.021 | I49: 0.0078 | J49: =AVERAGE(F49:G49) -> 0.0108 | K49: =AVERAGE(H49:I49) -> 0.0144
A50: Dioxins & Furans (I-TEQ) | C50: 6-8hrs | D50: 0.06 ng/m3 | F50: 0.0029 | G50: 0.00041 | H50: 0.0026 | I50: 0.0059 | J50: 0.001655 | K50: 0.00425
A51: PCBs (WHO-TEQ Humans / Mammals) | C51: 6-8hrs | D51: None set ng/m3 | F51: 0.000212 | G51: 9.1e-05 | H51: 0.000241 | I51: 0.001013 | J51: 0.0001515 | K51: 0.000627
A52: PCBs (WHO-TEQ Fish) | C52: 6-8hrs | D52: None set ng/m3 | F52: 1e-05 | G52: 4e-06 | H52: 1.1e-05 | I52: 5.2e-05 | J52: 7e-06 | K52: 3.15e-05
A53: PCBs (WHO-TEQ Birds) | C53: 6-8hrs | D53: None set ng/m3 | F53: 0.000683 | G53: 0.000333 | H53: 0.000595 | I53: 0.003359 | J53: 0.000508 | K53: 0.001977
A54: Dioxins & Furans (WHO-TEQ Humans / Mammals) | C54: 6-8hrs | D54: None set ng/m3 | F54: 0.0029 | G54: 0.00043 | H54: 0.0026 | I54: 0.0052 | J54: 0.001665 | K54: 0.0039
A55: Dioxins & Furans (WHO-TEQ Fish) | C55: 6-8hrs | D55: None set ng/m3 | F55: 0.0026 | G55: 0.00041 | H55: 0.0026 | I55: 0.006 | J55: 0.001505 | K55: 0.0043
A56: Dioxins & Furans (WHO-TEQ Birds) | C56: 6-8hrs | D56: None set ng/m3 | F56: 0.0058 | G56: 0.00141 | H56: 0.006 | I56: 0.0127 | J56: 0.003605 | K56: 0.00935
A57: Anthanthrene | C57: 6-8hrs | D57: None set µg/m3 | F57: < 0.0013 | H57: < 0.00139
A58: Benzo(a)anthracene | C58: 6-8hrs | D58: None set µg/m3 | F58: 0.0002 | H58: < 0.00139
A59: Benzo(a)pyrene | C59: 6-8hrs | D59: None set µg/m3 | F59: 0.0013 | H59: < 0.00139
A60: Benzo(b)fluoranthene | C60: 6-8hrs | D60: None set µg/m3 | F60: 0.0016 | H60: < 0.00139
A61: Benzo(b)naptho(2,1-d) thiophene | C61: 6-8hrs | D61: None set µg/m3 | F61: 0.0014 | H61: 0.00205
A62: Benzo(c)phenanthrene | C62: 6-8hrs | D62: None set µg/m3 | F62: < 0.0013 | H62: < 0.00139
A63: Benzo(ghi)perylene | C63: 6-8hrs | D63: None set µg/m3 | F63: 0.0081 | H63: < 0.00139
A64: Benzo(k)fluoranthene | C64: 6-8hrs | D64: None set µg/m3 | F64: < 0.0013 | H64: < 0.00139
A65: Cholanthrene | C65: 6-8hrs | D65: None set µg/m3 | F65: < 0.0013 | H65: < 0.00139
A66: Chrysene | C66: 6-8hrs | D66: None set µg/m3 | F66: 0.0024 | H66: 0.0019
A67: Cyclopenta(cd)pyrene | C67: 6-8hrs | D67: None set µg/m3 | F67: < 0.0013 | H67: < 0.00139
A68: Dibenzo(ai)pyrene | C68: 6-8hrs | D68: None set µg/m3 | F68: < 0.0013 | H68: < 0.00139
A69: Dibenzo(ah)anthracene | C69: 6-8hrs | D69: None set µg/m3 | F69: < 0.0013 | H69: < 0.00139
A70: Fluoranthene | C70: 6-8hrs | D70: None set µg/m3 | F70: 0.0396 | H70: 0.04269
A71: Indeno(123-cd) pyrene | C71: 6-8hrs | D71: None set µg/m3 | F71: < 0.0013 | H71: < 0.00139
A72: Naphthalene | C72: 6-8hrs | D72: None set µg/m3 | F72: 0.3503 | H72: 0.43555

Sheet Air (CEMS)
A1: =+'Cover Page'!$B$29 -> Annual Performance Report 2025 | I1: =+'Cover Page'!$B$33 -> Severnside Energy Recovery Centre
A3: Emissions to Air (continuously monitored)
N4: Notes:
A5: Summary of monitoring undertaken, standards used and compliance | N5: Template may require adjustment for any bespoke monitoring requirements of permit
A6: The CEMS set up comprises a multigas analyser, FID analyser and oxygen probe for extractive sampling where flue gases are drawn continuously via a heated line to the analysers in the CEMS container for each incineration line. In situ sampling i.e. where the probes are installed directly into the flue gas flow in the stack is for the dust probes only. The set up for the duty analysers is mirrored by the standby analysers. The standby analysers can be switched between incineration Lines 1 and 2 as required. Continuous monitoring is provided by the CEMS as required by the permit. The CEMS are installed in accordance with EN14181 and relevant Environment Agency guidance. | N6: Please check that all default ELV values match those for your plant and edit if necessary!
N7: Report to 1 decimal place
A8: SERC has an additional NOx emission limit value with a monthly average limit of 150 mg/Nm3.
A11: Results of emissions to air that are continuously monitored (maximum and average values for each line) - oxygen reference 11%
A12: Substance | B12: Reference Period | C12: Emission Limit Value | D12: A1 | F12: A2 | H12: A3 | J12: A4 | L12: A5
D13: Max. | E13: Avg. | F13: Max. | G13: Avg. | H13: Max. | I13: Avg. | J13: Max. | K13: Avg. | L13: Max. | M13: Avg.
A14: Oxides of nitrogen | B14: Daily mean | C14: 180 mg/m3 | D14: =NOx!O19 -> 155 | E14: =NOx!N19 -> 135.4833333 | F14: =NOx!O34 -> 160 | G14: =NOx!N34 -> 135.5833333
B15: ½ hourly mean | C15: 400 mg/m3 | D15: =NOx!M19 -> 276 | E15: =NOx!L19 -> 135.5833333 | F15: =NOx!M34 -> 284 | G15: =NOx!L34 -> 135.6666667
A16: Particulates | B16: Daily mean | C16: 5 mg/m3 | D16: =Particulates!$O$19 -> 2.7 | E16: =Particulates!$N$19 -> 1.215 | F16: =Particulates!$O$34 -> 2.6 | G16: =Particulates!$N$34 -> 0.8108333333
B17: ½ hourly mean | C17: 30 mg/m3 | D17: =Particulates!$M$19 -> 676.2 | E17: =Particulates!$L$19 -> 1.608333333 | F17: =Particulates!$M$34 -> 7 | G17: =Particulates!$L$34 -> 0.7916666667
A18: Total Organic Carbon | B18: Daily mean | C18: 10 mg/m3 | D18: =TOC!O19 -> 1.2 | E18: =TOC!N19 -> 0.4891666667 | F18: =TOC!O34 -> 1.1 | G18: =TOC!N34 -> 0.5066666667
B19: ½ hourly mean | C19: 20 mg/m3 | D19: =TOC!M19 -> 6 | E19: =TOC!L19 -> 0.5 | F19: =TOC!M34 -> 7.3 | G19: =TOC!L34 -> 0.5
A20: Hydrogen chloride | B20: Daily mean | C20: 8 mg/m3 | D20: =HCl!O19 -> 1.9 | E20: =HCl!N19 -> 0.5508333333 | F20: =HCl!O34 -> 5.4 | G20: =HCl!N34 -> 1.53
B21: ½ hourly mean | C21: 60 mg/m3 | D21: =HCl!M19 -> 9.6 | E21: =HCl!L19 -> 0.5416666667 | F21: =HCl!M34 -> 10.9 | G21: =HCl!L34 -> 1.533333333
A22: Sulphur dioxide | B22: Daily mean | C22: 40 mg/m3 | D22: ='SO2'!O19 -> 20 | E22: ='SO2'!N19 -> 5.874166667 | F22: ='SO2'!O34 -> 23 | G22: ='SO2'!N34 -> 8.489166667
B23: ½ hourly mean | C23: 200 mg/m3 | D23: ='SO2'!M19 -> 155.8 | E23: ='SO2'!L19 -> 5.683333333 | F23: ='SO2'!M34 -> 133 | G23: ='SO2'!L34 -> 8.366666667
A24: Carbon monoxide | B24: Daily mean | C24: 50 mg/m3 | D24: ='CO 95% 10 min'!Q19 -> 13.7 | E24: ='CO 95% 10 min'!P19 -> 2.7575 | F24: ='CO 95% 10 min'!Q34 -> 14.3 | G24: ='CO 95% 10 min'!P34 -> 2.433333333
B25: 95%ile 10-min avg | C25: 150 mg/m3 | D25: =MAX('CO 95% 10 min'!M7:M18) -> 37.2 | E25: ='CO 95% 10 min'!M19 -> 10.41666667 | F25: =MAX('CO 95% 10 min'!M22:M33) -> 28.4 | G25: ='CO 95% 10 min'!M34 -> 10.225
A26: Ammonia | B26: Daily mean | C26: 10 mg/m3 | D26: ='NH3'!O19 -> 4.1 | E26: ='NH3'!N19 -> 0.94 | F26: ='NH3'!O34 -> 3.6 | G26: ='NH3'!N34 -> 0.9291666667
A28: Comments :

Sheet HCl
A1: =+'Cover Page'!$B$29 -> Annual Performance Report 2025 | E1: =+'Cover Page'!$B$33 -> Severnside Energy Recovery Centre
A3: Monitoring of Hydrogen Chloride emissions | D3: Whole Installation | G3: See Notes in Cell Q3 | J3: =+A3 -> Monitoring of Hydrogen Chloride emissions | N3: Per Combustion Line | Q3: Notes:
Q4: User to add logic to complete Whole installation, Table A5:G18. From the data in Per Combustion Line, Table J6:O79, subject to No. of lines installed
A5: =+'Cover Page'!C39 -> 2025 | B5: 1/2 Hourly Reference Periods | E5: Daily Reference Periods
A6: mg/Nm3 | B6: 1/2 hourly HCl ELV | C6: Monthly mean of half-hourly averages | D6: Highest half- hourly average | E6: Daily HCl ELV | F6: Monthly mean of daily averages | G6: Highest daily average | J6: =+A5 -> 2025 | K6: mg/Nm3 | L6: Monthly mean of half-hourly averages | M6: Highest half- hourly average | N6: Monthly mean of daily averages | O6: Highest daily average
A7: Jan | B7: 60 | C7: =AVERAGE(L7,L22) -> 0.6 | D7: =MAX(M7,M22) -> 2.6 | E7: 8 | F7: =AVERAGE(N7,N22) -> 0.63 | G7: =MAX(O7,O22) -> 0.9 | J7: A1 | K7: Jan | L7: 0.6 | M7: 2.6 | N7: 0.66 | O7: 0.8
A8: Feb | B8: 60 | C8: =AVERAGE(L8,L23) -> 0.7 | D8: =MAX(M8,M23) -> 2.6 | E8: 8 | F8: =AVERAGE(N8,N23) -> 0.72 | G8: =MAX(O8,O23) -> 1.4 | K8: Feb | L8: 0.8 | M8: 2.6 | N8: 0.84 | O8: 1.4
A9: Mar | B9: 60 | C9: 1.65 | D9: 9.1 | E9: 8 | F9: 1.69 | G9: 5.4 | K9: Mar | L9: 0.9 | M9: 3.7 | N9: 0.88 | O9: 1.9 | Q9: Whole Installation table A5:G18:
A10: Apr | B10: 60 | C10: 1.55 | D10: 7.6 | E10: 8 | F10: 1.55 | G10: 4.4 | K10: Apr | L10: 0.9 | M10: 3.6 | N10: 0.9 | O10: 1.6 | Q10: Mean: for 1/2 hourly and daily periods calculate mean of values across all operational combustion lines for the month
A11: May | B11: 60 | C11: 1.15 | D11: 4.8 | E11: 8 | F11: 1.165 | G11: 4 | K11: May | L11: 0.7 | M11: 1.8 | N11: 0.73 | O11: 1
A12: Jun | B12: 60 | C12: 0.75 | D12: 3.2 | E12: 8 | F12: 0.73 | G12: 1.1 | K12: Jun | L12: 0.7 | M12: 1.9 | N12: 0.66 | O12: 0.9
A13: Jul | B13: 60 | C13: 0.2 | D13: 6.6 | E13: 8 | F13: 0.225 | G13: 0.6 | K13: Jul | L13: 0.3 | M13: 6.6 | N13: 0.31 | O13: 0.6 | Q13: Maximum: for 1/2 hourly and daily periods use the highest value across all operational combustion lines for the month
A14: Aug | B14: 60 | C14: 0.75 | D14: 7.2 | E14: 8 | F14: 0.75 | G14: 4.6 | K14: Aug | L14: 0.4 | M14: 7.2 | N14: 0.46 | O14: 0.8
A15: Sep | B15: 60 | C15: 1.6 | D15: 5.5 | E15: 8 | F15: 1.6 | G15: 4 | K15: Sep | L15: 0.4 | M15: 2.9 | N15: 0.4 | O15: 1
A16: Oct | B16: 60 | C16: 0.45 | D16: 4.5 | E16: 8 | F16: 0.415 | G16: 3.3 | K16: Oct | L16: 0.1 | M16: 2 | N16: 0.11 | O16: 0.3
A17: Nov | B17: 60 | C17: 1.05 | D17: 7.7 | E17: 8 | F17: 1.015 | G17: 5.4 | K17: Nov | L17: 0.2 | M17: 2.7 | N17: 0.13 | O17: 0.4
A18: Dec | B18: 60 | C18: 2 | D18: 10.9 | E18: 8 | F18: 1.995 | G18: 5.4 | K18: Dec | L18: 0.5 | M18: 9.6 | N18: 0.53 | O18: 1.9
K19: Annual | L19: =AVERAGE(L7:L18) -> 0.5416666667 | M19: =MAX(M7:M18) -> 9.6 | N19: =AVERAGE(N7:N18) -> 0.5508333333 | O19: =MAX(O7:O18) -> 1.9
J21: =+A5 -> 2025 | K21: mg/Nm3 | L21: Monthly mean of half-hourly averages | M21: Highest half- hourly average | N21: Monthly mean of daily averages | O21: Highest daily average
J22: A2 | K22: Jan | L22: 0.6 | M22: 2.1 | N22: 0.6 | O22: 0.9
K23: Feb | L23: 0.6 | M23: 2.1 | N23: 0.6 | O23: 0.9
K24: Mar | L24: 2.4 | M24: 9.1 | N24: 2.5 | O24: 5.4
K25: Apr | L25: 2.2 | M25: 7.6 | N25: 2.2 | O25: 4.4
K26: May | L26: 1.6 | M26: 4.8 | N26: 1.6 | O26: 4
K27: Jun | L27: 0.8 | M27: 3.2 | N27: 0.8 | O27: 1.1
K28: Jul | L28: 0.1 | M28: 0.9 | N28: 0.14 | O28: 0.4
K29: Aug | L29: 1.1 | M29: 5.7 | N29: 1.04 | O29: 4.6
K30: Sep | L30: 2.8 | M30: 5.5 | N30: 2.8 | O30: 4
K31: Oct | L31: 0.8 | M31: 4.5 | N31: 0.72 | O31: 3.3
K32: Nov | L32: 1.9 | M32: 7.7 | N32: 1.9 | O32: 5.4
K33: Dec | L33: 3.5 | M33: 10.9 | N33: 3.46 | O33: 5.4
K34: Annual | L34: =AVERAGE(L22:L33) -> 1.533333333 | M34: =MAX(M22:M33) -> 10.9 | N34: =AVERAGE(N22:N33) -> 1.53 | O34: =MAX(O22:O33) -> 5.4
J36: =+A5 -> 2025 | K36: mg/Nm3 | L36: Monthly mean of half-hourly averages | M36: Highest half- hourly average | N36: Monthly mean of daily averages | O36: Highest daily average
J37: A3 | K37: Jan
K38: Feb
K39: Mar
K40: Apr
K41: May
K42: Jun
K43: Jul
K44: Aug
K45: Sep
K46: Oct
K47: Nov
A48: Comments : | K48: Dec
K49: Annual | L49: =AVERAGE(L37:L48) ->  | M49: =MAX(M37:M48) -> 0 | N49: =AVERAGE(N37:N48) ->  | O49: =MAX(O37:O48) -> 0
J51: =+A5 -> 2025 | K51: mg/Nm3 | L51: Monthly mean of half-hourly averages | M51: Highest half- hourly average | N51: Monthly mean of daily averages | O51: Highest daily average
J52: A4 | K52: Jan
K53: Feb
K54: Mar
K55: Apr
K56: May
K57: Jun
K58: Jul
K59: Aug
K60: Sep
K61: Oct
K62: Nov
K63: Dec
K64: Annual | L64: =AVERAGE(L52:L63) ->  | M64: =MAX(M52:M63) -> 0 | N64: =AVERAGE(N52:N63) ->  | O64: =MAX(O52:O63) -> 0
J66: =+A5 -> 2025 | K66: mg/Nm3 | L66: Monthly mean of half-hourly averages | M66: Highest half- hourly average | N66: Monthly mean of daily averages | O66: Highest daily average
J67: A5 | K67: Jan
K68: Feb
K69: Mar
K70: Apr
K71: May
K72: Jun
K73: Jul
K74: Aug
K75: Sep
K76: Oct
K77: Nov
K78: Dec
K79: Annual | L79: =AVERAGE(L67:L78) ->  | M79: =MAX(M67:M78) -> 0 | N79: =AVERAGE(N67:N78) ->  | O79: =MAX(O67:O78) -> 0

Sheet SO2
A1: =+'Cover Page'!$B$29 -> Annual Performance Report 2025 | E1: =+'Cover Page'!$B$33 -> Severnside Energy Recovery Centre
A3: Monitoring of Sulphur dioxide emissions | D3: Whole Installation | G3: See Notes in Cell Q3 | J3: =+A3 -> Monitoring of Sulphur dioxide emissions | N3: Per Combustion Line | Q3: Notes:
Q4: User to add logic to complete Whole installation, Table A5:G18. From the data in Per Combustion Line, Table J6:O79, subject to No. of lines installed
A5: =+'Cover Page'!C39 -> 2025 | B5: 1/2 Hourly Reference Periods | E5: Daily Reference Periods
A6: mg/Nm3 | B6: 1/2 hourly SO2 ELV | C6: Monthly mean of half-hourly averages | D6: Highest half- hourly average | E6: Daily SO2 ELV | F6: Monthly mean of daily averages | G6: Highest daily average | J6: =+A5 -> 2025 | K6: mg/Nm3 | L6: Monthly mean of half-hourly averages | M6: Highest half- hourly average | N6: Monthly mean of daily averages | O6: Highest daily average
A7: Jan | B7: 200 | C7: =AVERAGE(L7,L22) -> 3.5 | D7: =MAX(M7,M22) -> 133 | E7: 40 | F7: =AVERAGE(N7,N22) -> 3.75 | G7: =MAX(O7,O22) -> 11 | J7: A1 | K7: Jan | L7: 1 | M7: 102 | N7: 1.6 | O7: 4
A8: Feb | B8: 200 | C8: =AVERAGE(L8,L23) -> 4.5 | D8: =MAX(M8,M23) -> 59 | E8: 40 | F8: =AVERAGE(N8,N23) -> 4.35 | G8: =MAX(O8,O23) -> 11 | K8: Feb | L8: 3 | M8: 48 | N8: 2.8 | O8: 5
A9: Mar | B9: 200 | C9: 5 | D9: 98 | E9: 40 | F9: 5.1 | G9: 18 | K9: Mar | L9: 4 | M9: 98 | N9: 3.8 | O9: 14 | Q9: Whole Installation table A5:G18:
A10: Apr | B10: 200 | C10: 4 | D10: 79 | E10: 40 | F10: 4 | G10: 10 | K10: Apr | L10: 3 | M10: 79 | N10: 3 | O10: 7 | Q10: Mean: for 1/2 hourly and daily periods calculate mean of values across all operational combustion lines for the month
A11: May | B11: 200 | C11: 4 | D11: 42 | E11: 40 | F11: 4.45 | G11: 12 | K11: May | L11: 3 | M11: 36 | N11: 3.5 | O11: 12
A12: Jun | B12: 200 | C12: 5.5 | D12: 124 | E12: 40 | F12: 6.15 | G12: 15 | K12: Jun | L12: 3 | M12: 52 | N12: 3.6 | O12: 8
A13: Jul | B13: 200 | C13: 9.5 | D13: 61 | E13: 40 | F13: 9.85 | G13: 20 | K13: Jul | L13: 9 | M13: 61 | N13: 9.6 | O13: 20 | Q13: Maximum: for 1/2 hourly and daily periods use the highest value across all operational combustion lines for the month
A14: Aug | B14: 200 | C14: 12 | D14: 71 | E14: 40 | F14: 12 | G14: 23 | K14: Aug | L14: 11 | M14: 65 | N14: 11 | O14: 20
A15: Sep | B15: 200 | C15: 9.5 | D15: 75 | E15: 40 | F15: 9.5 | G15: 16 | K15: Sep | L15: 9 | M15: 75 | N15: 9 | O15: 16
A16: Oct | B16: 200 | C16: 8.3 | D16: 54.3 | E16: 40 | F16: 8.395 | G16: 17.3 | K16: Oct | L16: 6.7 | M16: 39 | N16: 6.82 | O16: 13.2
A17: Nov | B17: 200 | C17: 9.6 | D17: 51.1 | E17: 40 | F17: 9.795 | G17: 15.2 | K17: Nov | L17: 8.5 | M17: 51.1 | N17: 8.89 | O17: 15.2
A18: Dec | B18: 200 | C18: 8.9 | D18: 155.8 | E18: 40 | F18: 8.84 | G18: 17.9 | K18: Dec | L18: 7 | M18: 155.8 | N18: 6.88 | O18: 17.9
K19: Annual | L19: =AVERAGE(L7:L18) -> 5.683333333 | M19: =MAX(M7:M18) -> 155.8 | N19: =AVERAGE(N7:N18) -> 5.874166667 | O19: =MAX(O7:O18) -> 20
J21: =+A5 -> 2025 | K21: mg/Nm3 | L21: Monthly mean of half-hourly averages | M21: Highest half- hourly average | N21: Monthly mean of daily averages | O21: Highest daily average
J22: A2 | K22: Jan | L22: 6 | M22: 133 | N22: 5.9 | O22: 11
K23: Feb | L23: 6 | M23: 59 | N23: 5.9 | O23: 11
K24: Mar | L24: 6 | M24: 78 | N24: 6.4 | O24: 18
K25: Apr | L25: 5 | M25: 29 | N25: 5 | O25: 10
K26: May | L26: 5 | M26: 42 | N26: 5.4 | O26: 9
K27: Jun | L27: 8 | M27: 124 | N27: 8.7 | O27: 15
K28: Jul | L28: 10 | M28: 40 | N28: 10.1 | O28: 16
K29: Aug | L29: 13 | M29: 71 | N29: 13 | O29: 23
K30: Sep | L30: 10 | M30: 52 | N30: 10 | O30: 12
K31: Oct | L31: 9.9 | M31: 54.3 | N31: 9.97 | O31: 17.3
K32: Nov | L32: 10.7 | M32: 43.2 | N32: 10.7 | O32: 15.2
K33: Dec | L33: 10.8 | M33: 57.7 | N33: 10.8 | O33: 16.5
K34: Annual | L34: =AVERAGE(L22:L33) -> 8.366666667 | M34: =MAX(M22:M33) -> 133 | N34: =AVERAGE(N22:N33) -> 8.489166667 | O34: =MAX(O22:O33) -> 23
J36: =+A5 -> 2025 | K36: mg/Nm3 | L36: Monthly mean of half-hourly averages | M36: Highest half- hourly average | N36: Monthly mean of daily averages | O36: Highest daily average
J37: A3 | K37: Jan
K38: Feb
K39: Mar
K40: Apr
K41: May
K42: Jun
K43: Jul
K44: Aug
K45: Sep
K46: Oct
K47: Nov
A48: Comments : | K48: Dec
K49: Annual | L49: =AVERAGE(L37:L48) ->  | M49: =MAX(M37:M48) -> 0 | N49: =AVERAGE(N37:N48) ->  | O49: =MAX(O37:O48) -> 0
J51: =+A5 -> 2025 | K51: mg/Nm3 | L51: Monthly mean of half-hourly averages | M51: Highest half- hourly average | N51: Monthly mean of daily averages | O51: Highest daily average
J52: A4 | K52: Jan
K53: Feb
K54: Mar
K55: Apr
K56: May
K57: Jun
K58: Jul
K59: Aug
K60: Sep
K61: Oct
K62: Nov
K63: Dec
K64: Annual | L64: =AVERAGE(L52:L63) ->  | M64: =MAX(M52:M63) -> 0 | N64: =AVERAGE(N52:N63) ->  | O64: =MAX(O52:O63) -> 0
J66: =+A5 -> 2025 | K66: mg/Nm3 | L66: Monthly mean of half-hourly averages | M66: Highest half- hourly average | N66: Monthly mean of daily averages | O66: Highest daily average
J67: A5 | K67: Jan
K68: Feb
K69: Mar
K70: Apr
K71: May
K72: Jun
K73: Jul
K74: Aug
K75: Sep
K76: Oct
K77: Nov
K78: Dec
K79: Annual | L79: =AVERAGE(L67:L78) ->  | M79: =MAX(M67:M78) -> 0 | N79: =AVERAGE(N67:N78) ->  | O79: =MAX(O67:O78) -> 0

Sheet NOx
A1: =+'Cover Page'!$B$29 -> Annual Performance Report 2025 | E1: =+'Cover Page'!$B$33 -> Severnside Energy Recovery Centre
A3: Monitoring of Oxides of Nitrogen emissions | D3: Whole Installation | G3: See Notes in Cell Q3 | J3: =+A3 -> Monitoring of Oxides of Nitrogen emissions | N3: Per Combustion Line | Q3: Notes:
Q4: User to add logic to complete Whole installation, Table A5:G18. From the data in Per Combustion Line, Table J6:O79, subject to No. of lines installed
A5: =+'Cover Page'!C39 -> 2025 | B5: 1/2 Hourly Reference Periods | E5: Daily Reference Periods
A6: mg/Nm3 | B6: 1/2 hourly NOx ELV | C6: Monthly mean of half-hourly averages | D6: Highest half- hourly average | E6: Daily NOx ELV | F6: Monthly mean of daily averages | G6: Highest daily average | J6: =+A5 -> 2025 | K6: mg/Nm3 | L6: Monthly mean of half-hourly averages | M6: Highest half- hourly average | N6: Monthly mean of daily averages | O6: Highest daily average
A7: Jan | B7: 400 | C7: =AVERAGE(L7,L22) -> 136 | D7: =MAX(M7,M22) -> 226 | E7: 180 | F7: =AVERAGE(N7,N22) -> 135.9 | G7: =MAX(O7,O22) -> 148 | J7: A1 | K7: Jan | L7: 136 | M7: 206 | N7: 136 | O7: 142
A8: Feb | B8: 400 | C8: =AVERAGE(L8,L23) -> 135 | D8: =MAX(M8,M23) -> 180 | E8: 180 | F8: =AVERAGE(N8,N23) -> 135 | G8: =MAX(O8,O23) -> 137 | K8: Feb | L8: 135 | M8: 180 | N8: 135 | O8: 137
A9: Mar | B9: 400 | C9: 134 | D9: 180 | E9: 180 | F9: 134.1 | G9: 137 | K9: Mar | L9: 133 | M9: 180 | N9: 133 | O9: 137 | Q9: Whole Installation table A5:G18:
A10: Apr | B10: 400 | C10: 135 | D10: 172 | E10: 180 | F10: 135 | G10: 137 | K10: Apr | L10: 135 | M10: 169 | N10: 135 | O10: 137 | Q10: Mean: for 1/2 hourly and daily periods calculate mean of values across all operational combustion lines for the month
A11: May | B11: 400 | C11: 135 | D11: 205 | E11: 180 | F11: 135.45 | G11: 138 | K11: May | L11: 135 | M11: 184 | N11: 135.4 | O11: 137
A12: Jun | B12: 400 | C12: 135.5 | D12: 181 | E12: 180 | F12: 135.35 | G12: 138 | K12: Jun | L12: 136 | M12: 181 | N12: 135.3 | O12: 137
A13: Jul | B13: 400 | C13: 137.5 | D13: 215 | E13: 180 | F13: 137.85 | G13: 160 | K13: Jul | L13: 138 | M13: 215 | N13: 138 | O13: 155 | Q13: Maximum: for 1/2 hourly and daily periods use the highest value across all operational combustion lines for the month
A14: Aug | B14: 400 | C14: 137.5 | D14: 284 | E14: 180 | F14: 136.95 | G14: 147 | K14: Aug | L14: 137 | M14: 276 | N14: 137 | O14: 146
A15: Sep | B15: 400 | C15: 136 | D15: 271 | E15: 180 | F15: 136 | G15: 145 | K15: Sep | L15: 136 | M15: 271 | N15: 136 | O15: 145
A16: Oct | B16: 400 | C16: 136 | D16: 210 | E16: 180 | F16: 135.55 | G16: 138 | K16: Oct | L16: 136 | M16: 180 | N16: 135.6 | O16: 138
A17: Nov | B17: 400 | C17: 136 | D17: 176 | E17: 180 | F17: 135.5 | G17: 137 | K17: Nov | L17: 136 | M17: 176 | N17: 135.5 | O17: 137
A18: Dec | B18: 400 | C18: 134 | D18: 176 | E18: 180 | F18: 133.75 | G18: 137 | K18: Dec | L18: 134 | M18: 173 | N18: 134 | O18: 137
K19: Annual | L19: =AVERAGE(L7:L18) -> 135.5833333 | M19: =MAX(M7:M18) -> 276 | N19: =AVERAGE(N7:N18) -> 135.4833333 | O19: =MAX(O7:O18) -> 155
J21: =+A5 -> 2025 | K21: mg/Nm3 | L21: Monthly mean of half-hourly averages | M21: Highest half- hourly average | N21: Monthly mean of daily averages | O21: Highest daily average
J22: A2 | K22: Jan | L22: 136 | M22: 226 | N22: 135.8 | O22: 148
K23: Feb | L23: 135 | M23: 173 | N23: 135 | O23: 137
K24: Mar | L24: 135 | M24: 167 | N24: 135.2 | O24: 137
K25: Apr | L25: 135 | M25: 172 | N25: 135 | O25: 137
K26: May | L26: 135 | M26: 205 | N26: 135.5 | O26: 138
K27: Jun | L27: 135 | M27: 172 | N27: 135.4 | O27: 138
K28: Jul | L28: 137 | M28: 200 | N28: 137.7 | O28: 160
K29: Aug | L29: 138 | M29: 284 | N29: 136.9 | O29: 147
K30: Sep | L30: 136 | M30: 240 | N30: 136 | O30: 145
K31: Oct | L31: 136 | M31: 210 | N31: 135.5 | O31: 137
K32: Nov | L32: 136 | M32: 172 | N32: 135.5 | O32: 137
K33: Dec | L33: 134 | M33: 176 | N33: 133.5 | O33: 137
K34: Annual | L34: =AVERAGE(L22:L33) -> 135.6666667 | M34: =MAX(M22:M33) -> 284 | N34: =AVERAGE(N22:N33) -> 135.5833333 | O34: =MAX(O22:O33) -> 160
J36: =+A5 -> 2025 | K36: mg/Nm3 | L36: Monthly mean of half-hourly averages | M36: Highest half- hourly average | N36: Monthly mean of daily averages | O36: Highest daily average
J37: A3 | K37: Jan
K38: Feb
K39: Mar
K40: Apr
K41: May
K42: Jun
K43: Jul
K44: Aug
K45: Sep
K46: Oct
K47: Nov
A48: Comments : | K48: Dec
K49: Annual | L49: =AVERAGE(L37:L48) ->  | M49: =MAX(M37:M48) -> 0 | N49: =AVERAGE(N37:N48) ->  | O49: =MAX(O37:O48) -> 0
J51: =+A5 -> 2025 | K51: mg/Nm3 | L51: Monthly mean of half-hourly averages | M51: Highest half- hourly average | N51: Monthly mean of daily averages | O51: Highest daily average
J52: A4 | K52: Jan
K53: Feb
K54: Mar
K55: Apr
K56: May
K57: Jun
K58: Jul
K59: Aug
K60: Sep
K61: Oct
K62: Nov
K63: Dec
K64: Annual | L64: =AVERAGE(L52:L63) ->  | M64: =MAX(M52:M63) -> 0 | N64: =AVERAGE(N52:N63) ->  | O64: =MAX(O52:O63) -> 0
J66: =+A5 -> 2025 | K66: mg/Nm3 | L66: Monthly mean of half-hourly averages | M66: Highest half- hourly average | N66: Monthly mean of daily averages | O66: Highest daily average
J67: A5 | K67: Jan
K68: Feb
K69: Mar
K70: Apr
K71: May
K72: Jun
K73: Jul
K74: Aug
K75: Sep
K76: Oct
K77: Nov
K78: Dec
K79: Annual | L79: =AVERAGE(L67:L78) ->  | M79: =MAX(M67:M78) -> 0 | N79: =AVERAGE(N67:N78) ->  | O79: =MAX(O67:O78) -> 0

Sheet TOC
A1: =+'Cover Page'!$B$29 -> Annual Performance Report 2025 | E1: =+'Cover Page'!$B$33 -> Severnside Energy Recovery Centre
A3: Monitoring of Total organic carbon emissions | D3: Whole Installation | G3: See Notes in Cell Q3 | J3: =+A3 -> Monitoring of Total organic carbon emissions | N3: Per Combustion Line | Q3: Notes:
Q4: User to add logic to complete Whole installation, Table A5:G18. From the data in Per Combustion Line, Table J6:O79, subject to No. of lines installed
A5: =+'Cover Page'!C39 -> 2025 | B5: 1/2 Hourly Reference Periods | E5: Daily Reference Periods
A6: mg/Nm3 | B6: 1/2 hourly TOC ELV | C6: Monthly mean of half-hourly averages | D6: Highest half- hourly average | E6: Daily TOC ELV | F6: Monthly mean of daily averages | G6: Highest daily average | J6: =+A5 -> 2025 | K6: mg/Nm3 | L6: Monthly mean of half-hourly averages | M6: Highest half- hourly average | N6: Monthly mean of daily averages | O6: Highest daily average
A7: Jan | B7: 20 | C7: =AVERAGE(L7,L22) -> 0.3 | D7: =MAX(M7,M22) -> 3.8 | E7: 10 | F7: =AVERAGE(N7,N22) -> 0.275 | G7: =MAX(O7,O22) -> 1.2 | J7: A1 | K7: Jan | L7: 0.5 | M7: 3.8 | N7: 0.45 | O7: 1.2
A8: Feb | B8: 20 | C8: =AVERAGE(L8,L23) -> 0.45 | D8: =MAX(M8,M23) -> 4.1 | E8: 10 | F8: =AVERAGE(N8,N23) -> 0.46 | G8: =MAX(O8,O23) -> 0.9 | K8: Feb | L8: 0.6 | M8: 3.9 | N8: 0.6 | O8: 0.9
A9: Mar | B9: 20 | C9: 0.45 | D9: 3.9 | E9: 10 | F9: 0.415 | G9: 0.7 | K9: Mar | L9: 0.6 | M9: 3.9 | N9: 0.55 | O9: 0.7 | Q9: Whole Installation table A5:G18:
A10: Apr | B10: 20 | C10: 0.4 | D10: 4.1 | E10: 10 | F10: 0.4 | G10: 0.6 | K10: Apr | L10: 0.5 | M10: 4.1 | N10: 0.5 | O10: 0.6 | Q10: Mean: for 1/2 hourly and daily periods calculate mean of values across all operational combustion lines for the month
A11: May | B11: 20 | C11: 0.4 | D11: 7.3 | E11: 10 | F11: 0.405 | G11: 0.6 | K11: May | L11: 0.5 | M11: 3.3 | N11: 0.5 | O11: 0.6
A12: Jun | B12: 20 | C12: 0.4 | D12: 3.8 | E12: 10 | F12: 0.405 | G12: 0.6 | K12: Jun | L12: 0.5 | M12: 2.8 | N12: 0.52 | O12: 0.6
A13: Jul | B13: 20 | C13: 0.7 | D13: 3.8 | E13: 10 | F13: 0.715 | G13: 0.9 | K13: Jul | L13: 0.6 | M13: 3 | N13: 0.6 | O13: 0.8 | Q13: Maximum: for 1/2 hourly and daily periods use the highest value across all operational combustion lines for the month
A14: Aug | B14: 20 | C14: 0.7 | D14: 5 | E14: 10 | F14: 0.68 | G14: 1 | K14: Aug | L14: 0.6 | M14: 3.6 | N14: 0.57 | O14: 0.9
A15: Sep | B15: 20 | C15: 0.65 | D15: 6 | E15: 10 | F15: 0.65 | G15: 0.9 | K15: Sep | L15: 0.5 | M15: 6 | N15: 0.5 | O15: 0.8
A16: Oct | B16: 20 | C16: 0.6 | D16: 5.6 | E16: 10 | F16: 0.625 | G16: 1.1 | K16: Oct | L16: 0.5 | M16: 5.2 | N16: 0.53 | O16: 0.8
A17: Nov | B17: 20 | C17: 0.4 | D17: 3.3 | E17: 10 | F17: 0.385 | G17: 0.8 | K17: Nov | L17: 0.3 | M17: 3.3 | N17: 0.27 | O17: 0.5
A18: Dec | B18: 20 | C18: 0.55 | D18: 5.7 | E18: 10 | F18: 0.56 | G18: 1 | K18: Dec | L18: 0.3 | M18: 5.7 | N18: 0.28 | O18: 0.9
K19: Annual | L19: =AVERAGE(L7:L18) -> 0.5 | M19: =MAX(M7:M18) -> 6 | N19: =AVERAGE(N7:N18) -> 0.4891666667 | O19: =MAX(O7:O18) -> 1.2
J21: =+A5 -> 2025 | K21: mg/Nm3 | L21: Monthly mean of half-hourly averages | M21: Highest half- hourly average | N21: Monthly mean of daily averages | O21: Highest daily average
J22: A2 | K22: Jan | L22: 0.1 | M22: 3.3 | N22: 0.1 | O22: 0.4
K23: Feb | L23: 0.3 | M23: 4.1 | N23: 0.32 | O23: 0.5
K24: Mar | L24: 0.3 | M24: 3.4 | N24: 0.28 | O24: 0.4
K25: Apr | L25: 0.3 | M25: 3.5 | N25: 0.3 | O25: 0.4
K26: May | L26: 0.3 | M26: 7.3 | N26: 0.31 | O26: 0.6
K27: Jun | L27: 0.3 | M27: 3.8 | N27: 0.29 | O27: 0.4
K28: Jul | L28: 0.8 | M28: 3.8 | N28: 0.83 | O28: 0.9
K29: Aug | L29: 0.8 | M29: 5 | N29: 0.79 | O29: 1
K30: Sep | L30: 0.8 | M30: 5 | N30: 0.8 | O30: 0.9
K31: Oct | L31: 0.7 | M31: 5.6 | N31: 0.72 | O31: 1.1
K32: Nov | L32: 0.5 | M32: 3.2 | N32: 0.5 | O32: 0.8
K33: Dec | L33: 0.8 | M33: 4 | N33: 0.84 | O33: 1
K34: Annual | L34: =AVERAGE(L22:L33) -> 0.5 | M34: =MAX(M22:M33) -> 7.3 | N34: =AVERAGE(N22:N33) -> 0.5066666667 | O34: =MAX(O22:O33) -> 1.1
J36: =+A5 -> 2025 | K36: mg/Nm3 | L36: Monthly mean of half-hourly averages | M36: Highest half- hourly average | N36: Monthly mean of daily averages | O36: Highest daily average
J37: A3 | K37: Jan
K38: Feb
K39: Mar
K40: Apr
K41: May
K42: Jun
K43: Jul
K44: Aug
K45: Sep
K46: Oct
K47: Nov
A48: Comments : | K48: Dec
K49: Annual | L49: =AVERAGE(L37:L48) ->  | M49: =MAX(M37:M48) -> 0 | N49: =AVERAGE(N37:N48) ->  | O49: =MAX(O37:O48) -> 0
J51: =+A5 -> 2025 | K51: mg/Nm3 | L51: Monthly mean of half-hourly averages | M51: Highest half- hourly average | N51: Monthly mean of daily averages | O51: Highest daily average
J52: A4 | K52: Jan
K53: Feb
K54: Mar
K55: Apr
K56: May
K57: Jun
K58: Jul
K59: Aug
K60: Sep
K61: Oct
K62: Nov
K63: Dec
K64: Annual | L64: =AVERAGE(L52:L63) ->  | M64: =MAX(M52:M63) -> 0 | N64: =AVERAGE(N52:N63) ->  | O64: =MAX(O52:O63) -> 0
J66: =+A5 -> 2025 | K66: mg/Nm3 | L66: Monthly mean of half-hourly averages | M66: Highest half- hourly average | N66: Monthly mean of daily averages | O66: Highest daily average
J67: A5 | K67: Jan
K68: Feb
K69: Mar
K70: Apr
K71: May
K72: Jun
K73: Jul
K74: Aug
K75: Sep
K76: Oct
K77: Nov
K78: Dec
K79: Annual | L79: =AVERAGE(L67:L78) ->  | M79: =MAX(M67:M78) -> 0 | N79: =AVERAGE(N67:N78) ->  | O79: =MAX(O67:O78) -> 0

Sheet Particulates
A1: =+'Cover Page'!$B$29 -> Annual Performance Report 2025 | E1: =+'Cover Page'!$B$33 -> Severnside Energy Recovery Centre
A3: Monitoring of Particulate matter emissions | D3: Whole Installation | G3: See Notes in Cell Q3 | J3: =+A3 -> Monitoring of Particulate matter emissions | N3: Per Combustion Line | Q3: Notes:
A5: =+'Cover Page'!C39 -> 2025 | B5: 1/2 Hourly Reference Periods | E5: Daily Reference Periods | Q5: User to add logic to complete Whole installation, Table A5:G18. From the data in Per Combustion Line, Table J6:O79, subject to No. of lines installed
A6: mg/Nm3 | B6: 1/2 hourly PM ELV | C6: Monthly mean of half-hourly averages | D6: Highest half- hourly average | E6: Daily PM ELV | F6: Monthly mean of daily averages | G6: Highest daily average | J6: =+A5 -> 2025 | K6: mg/Nm3 | L6: Monthly mean of half-hourly averages | M6: Highest half- hourly average | N6: Monthly mean of daily averages | O6: Highest daily average
A7: Jan | B7: 30 | C7: =AVERAGE(L7,L22) -> 1.85 | D7: =MAX(M7,M22) -> 3.7 | E7: 5 | F7: =AVERAGE(N7,N22) -> 1.885 | G7: =MAX(O7,O22) -> 2.6 | J7: A1 | K7: Jan | L7: 1.9 | M7: 2.8 | N7: 1.9 | O7: 2.2
A8: Feb | B8: 30 | C8: =AVERAGE(L8,L23) -> 1.35 | D8: =MAX(M8,M23) -> 7 | E8: 5 | F8: =AVERAGE(N8,N23) -> 1.31 | G8: =MAX(O8,O23) -> 2.5 | K8: Feb | L8: 1.9 | M8: 3.9 | N8: 1.9 | O8: 2.2
A9: Mar | B9: 30 | C9: 1.25 | D9: 3.3 | E9: 5 | F9: 1.24 | G9: 2.1 | K9: Mar | L9: 2 | M9: 3.3 | N9: 1.94 | O9: 2.1
A10: Apr | B10: 30 | C10: 1.35 | D10: 3.2 | E10: 5 | F10: 1.35 | G10: 2.7 | K10: Apr | L10: 2.1 | M10: 3.2 | N10: 2.1 | O10: 2.7 | Q10: Whole Installation table A5:G18:
A11: May | B11: 30 | C11: 3.35 | D11: 676.2 | E11: 5 | F11: 1.125 | G11: 2.7 | K11: May | L11: 6.1 | M11: 676.2 | N11: 1.6 | O11: 2.7 | Q11: Mean: for 1/2 hourly and daily periods calculate mean of values across all operational combustion lines for the month
A12: Jun | B12: 30 | C12: 1.2 | D12: 3.6 | E12: 5 | F12: 1.25 | G12: 2.3 | K12: Jun | L12: 0.7 | M12: 1.1 | N12: 0.72 | O12: 0.8
A13: Jul | B13: 30 | C13: 0.65 | D13: 10.1 | E13: 5 | F13: 0.57 | G13: 1.4 | K13: Jul | L13: 0.9 | M13: 10.1 | N13: 0.72 | O13: 1.4
A14: Aug | B14: 30 | C14: 0.65 | D14: 3.3 | E14: 5 | F14: 0.605 | G14: 1.3 | K14: Aug | L14: 0.8 | M14: 3.3 | N14: 0.73 | O14: 1.3 | Q14: Maximum: for 1/2 hourly and daily periods use the highest value across all operational combustion lines for the month
A15: Sep | B15: 30 | C15: 0.7 | D15: 4.1 | E15: 5 | F15: 0.7 | G15: 1.4 | K15: Sep | L15: 0.8 | M15: 4.1 | N15: 0.8 | O15: 1.4
A16: Oct | B16: 30 | C16: 0.8 | D16: 4.1 | E16: 5 | F16: 0.82 | G16: 1.6 | K16: Oct | L16: 0.9 | M16: 4.1 | N16: 0.91 | O16: 1.6
A17: Nov | B17: 30 | C17: 0.8 | D17: 1.9 | E17: 5 | F17: 0.825 | G17: 0.9 | K17: Nov | L17: 0.8 | M17: 1.9 | N17: 0.82 | O17: 0.9
A18: Dec | B18: 30 | C18: 0.45 | D18: 1.4 | E18: 5 | F18: 0.475 | G18: 0.9 | K18: Dec | L18: 0.4 | M18: 1.4 | N18: 0.44 | O18: 0.9
K19: Annual | L19: =AVERAGE(L7:L18) -> 1.608333333 | M19: =MAX(M7:M18) -> 676.2 | N19: =AVERAGE(N7:N18) -> 1.215 | O19: =MAX(O7:O18) -> 2.7
J21: =+A5 -> 2025 | K21: mg/Nm3 | L21: Monthly mean of half-hourly averages | M21: Highest half- hourly average | N21: Monthly mean of daily averages | O21: Highest daily average
J22: A2 | K22: Jan | L22: 1.8 | M22: 3.7 | N22: 1.87 | O22: 2.6
K23: Feb | L23: 0.8 | M23: 7 | N23: 0.72 | O23: 2.5
K24: Mar | L24: 0.5 | M24: 1.4 | N24: 0.54 | O24: 0.8
K25: Apr | L25: 0.6 | M25: 1.8 | N25: 0.6 | O25: 1
K26: May | L26: 0.6 | M26: 3 | N26: 0.65 | O26: 0.9
K27: Jun | L27: 1.7 | M27: 3.6 | N27: 1.78 | O27: 2.3
K28: Jul | L28: 0.4 | M28: 3 | N28: 0.42 | O28: 0.5
K29: Aug | L29: 0.5 | M29: 1.6 | N29: 0.48 | O29: 0.6
K30: Sep | L30: 0.6 | M30: 1.7 | N30: 0.6 | O30: 0.7
K31: Oct | L31: 0.7 | M31: 1.3 | N31: 0.73 | O31: 0.8
K32: Nov | L32: 0.8 | M32: 1.3 | N32: 0.83 | O32: 0.9
K33: Dec | L33: 0.5 | M33: 1.1 | N33: 0.51 | O33: 0.9
K34: Annual | L34: =AVERAGE(L22:L33) -> 0.7916666667 | M34: =MAX(M22:M33) -> 7 | N34: =AVERAGE(N22:N33) -> 0.8108333333 | O34: =MAX(O22:O33) -> 2.6
J36: =+A5 -> 2025 | K36: mg/Nm3 | L36: Monthly mean of half-hourly averages | M36: Highest half- hourly average | N36: Monthly mean of daily averages | O36: Highest daily average
J37: A3 | K37: Jan
K38: Feb
K39: Mar
K40: Apr
K41: May
K42: Jun
K43: Jul
K44: Aug
K45: Sep
K46: Oct
K47: Nov
A48: Comments : | K48: Dec
K49: Annual | L49: =AVERAGE(L37:L48) ->  | M49: =MAX(M37:M48) -> 0 | N49: =AVERAGE(N37:N48) ->  | O49: =MAX(O37:O48) -> 0
J51: =+A5 -> 2025 | K51: mg/Nm3 | L51: Monthly mean of half-hourly averages | M51: Highest half- hourly average | N51: Monthly mean of daily averages | O51: Highest daily average
J52: A4 | K52: Jan
K53: Feb
K54: Mar
K55: Apr
K56: May
K57: Jun
K58: Jul
K59: Aug
K60: Sep
K61: Oct
K62: Nov
K63: Dec
K64: Annual | L64: =AVERAGE(L52:L63) ->  | M64: =MAX(M52:M63) -> 0 | N64: =AVERAGE(N52:N63) ->  | O64: =MAX(O52:O63) -> 0
J66: =+A5 -> 2025 | K66: mg/Nm3 | L66: Monthly mean of half-hourly averages | M66: Highest half- hourly average | N66: Monthly mean of daily averages | O66: Highest daily average
J67: A5 | K67: Jan
K68: Feb
K69: Mar
K70: Apr
K71: May
K72: Jun
K73: Jul
K74: Aug
K75: Sep
K76: Oct
K77: Nov
K78: Dec
K79: Annual | L79: =AVERAGE(L67:L78) ->  | M79: =MAX(M67:M78) -> 0 | N79: =AVERAGE(N67:N78) ->  | O79: =MAX(O67:O78) -> 0

Sheet CO 95% 10 min
A1: =+'Cover Page'!$B$29 -> Annual Performance Report 2025 | E1: =+'Cover Page'!$B$33 -> Severnside Energy Recovery Centre
A3: Monitoring of Carbon Monoxide (10-minute avg) | E3: Whole Installation | H3: See Notes in Cell S3 | J3: =+A3 -> Monitoring of Carbon Monoxide (10-minute avg) | O3: Per Combustion Line | Q3: Notes: | S3: Notes:
S4: User to add logic to complete Whole installation, Table A5:H18. From the data in Per Combustion Line, Table K6:Q79, subject to No. of lines installed
A5: =+'Cover Page'!C39 -> 2025 | B5: 10-minute Reference Periods | F5: Daily Reference Periods
A6: mg/Nm3 | B6: 95%ile 10-min avg CO ELV | C6: Highest daily 95%ile 10-min average | D6: Monthly mean of 10-min averages | E6: Highest 10-min average | F6: Daily CO ELV | G6: Monthly mean of daily averages | H6: Highest daily average | K6: =+A5 -> 2025 | L6: mg/Nm3 | M6: Highest daily 95%ile 10-min average | N6: Monthly mean of 10-min averages | O6: Highest 10-min average | P6: Monthly mean of daily averages | Q6: Highest daily average
A7: Jan | B7: 150 | C7: =MAX(M7,M22) -> 37.2 | D7: =AVERAGE(N7,N22) -> 2.5 | E7: =MAX(O7,O22) -> 506.3 | F7: 50 | G7: =AVERAGE(P7,P22) -> 2.5 | H7: =MAX(Q7,Q22) -> 13.7 | K7: A1 | L7: Jan | M7: 37.2 | N7: 3.4 | O7: 506.3 | P7: 3.4 | Q7: 13.7
A8: Feb | B8: =+B7 -> 150 | C8: =MAX(M8,M23) -> 5.6 | D8: =AVERAGE(N8,N23) -> 2 | E8: =MAX(O8,O23) -> 294.7 | F8: =+F7 -> 50 | G8: =AVERAGE(P8,P23) -> 2.035 | H8: =MAX(Q8,Q23) -> 5.6 | L8: Feb | M8: 5.6 | N8: 2.6 | O8: 294.7 | P8: 2.6 | Q8: 5.6
A9: Mar | B9: =+B8 -> 150 | C9: 5.2 | D9: 2.05 | E9: 322.1 | F9: =+F8 -> 50 | G9: 1.95 | H9: 5.4 | L9: Mar | M9: 5.2 | N9: 2.7 | O9: 199 | P9: 2.7 | Q9: 3.9 | S9: Whole Installation table A5:H18:
A10: Apr | B10: 150 | C10: 5.6 | D10: 2.25 | E10: 713.1 | F10: 50 | G10: 2.205 | H10: 9.6 | L10: Apr | M10: 5 | N10: 2.5 | O10: 246.4 | P10: 2.45 | Q10: 5.6 | S10: Mean: for 10-min and daily periods use average of all operational combustion lines.
A11: May | B11: 150 | C11: 27 | D11: 2.05 | E11: 482.5 | F11: 50 | G11: 2.005 | H11: 4.1 | L11: May | M11: 8.3 | N11: 2.1 | O11: 187.4 | P11: 2.18 | Q11: 3.6
A12: Jun | B12: 150 | C12: 9.9 | D12: 1.5 | E12: 533.4 | F12: 50 | G12: 1.615 | H12: 5.7 | L12: Jun | M12: 6.8 | N12: 1.6 | O12: 154.7 | P12: 1.69 | Q12: 4.4
A13: Jul | B13: 150 | C13: 6.4 | D13: 2.45 | E13: 207.2 | F13: 50 | G13: 2.585 | H13: 4.7 | L13: Jul | M13: 5.7 | N13: 1.9 | O13: 207.2 | P13: 1.95 | Q13: 3.1 | S13: Maximum: for 10-min and daily periods use the highest of all operational combustion lines in any month.
A14: Aug | B14: 150 | C14: 28.4 | D14: 3.65 | E14: 443.3 | F14: 50 | G14: 3.885 | H14: 14.3 | L14: Aug | M14: 6.6 | N14: 2.4 | O14: 409.7 | P14: 2.57 | Q14: 5.1
A15: Sep | B15: 150 | C15: 13 | D15: 3.65 | E15: 423.2 | F15: 50 | G15: 3.65 | H15: 8.3 | L15: Sep | M15: 13 | N15: 2.8 | O15: 165.5 | P15: 2.83 | Q15: 4.3
A16: Oct | B16: 150 | C16: 7.4 | D16: 2.9 | E16: 425.4 | F16: 50 | G16: 2.895 | H16: 6.7 | L16: Oct | M16: 7.1 | N16: 3.2 | O16: 347.3 | P16: 3.22 | Q16: 5.1
A17: Nov | B17: 150 | C17: 6.8 | D17: 2.5 | E17: 249.5 | F17: 50 | G17: 2.81 | H17: 4.3 | L17: Nov | M17: 6.8 | N17: 3.3 | O17: 217 | P17: 3.9 | Q17: 4.3
A18: Dec | B18: 150 | C18: 17.7 | D18: 3.05 | E18: 459.4 | F18: 50 | G18: 3.01 | H18: 6.7 | L18: Dec | M18: 17.7 | N18: 3.7 | O18: 459.4 | P18: 3.6 | Q18: 6.7
L19: Annual | M19: =AVERAGE(M7:M18) -> 10.41666667 | N19: =AVERAGE(N7:N18) -> 2.683333333 | O19: =MAX(O7:O18) -> 506.3 | P19: =AVERAGE(P7:P18) -> 2.7575 | Q19: =MAX(Q7:Q18) -> 13.7
K21: =+A5 -> 2025 | L21: mg/Nm3 | M21: Highest daily 95%ile 10-min average | N21: Monthly mean of 10-min averages | O21: Highest 10-min average | P21: Monthly mean of daily averages | Q21: Highest daily average
K22: A2 | L22: Jan | M22: 6.3 | N22: 1.6 | O22: 352.1 | P22: 1.6 | Q22: 5.1
L23: Feb | M23: 5.4 | N23: 1.4 | O23: 286.7 | P23: 1.47 | Q23: 5
L24: Mar | M24: 5.1 | N24: 1.4 | O24: 322.1 | P24: 1.2 | Q24: 5.4
L25: Apr | M25: 5.6 | N25: 2 | O25: 713.1 | P25: 1.96 | Q25: 9.6
L26: May | M26: 27 | N26: 2 | O26: 482.5 | P26: 1.83 | Q26: 4.1
L27: Jun | M27: 9.9 | N27: 1.4 | O27: 533.4 | P27: 1.54 | Q27: 5.7
L28: Jul | M28: 6.4 | N28: 3 | O28: 192.5 | P28: 3.22 | Q28: 4.7
L29: Aug | M29: 28.4 | N29: 4.9 | O29: 443.3 | P29: 5.2 | Q29: 14.3
L30: Sep | M30: 7.5 | N30: 4.5 | O30: 423.2 | P30: 4.47 | Q30: 8.3
L31: Oct | M31: 7.4 | N31: 2.6 | O31: 425.4 | P31: 2.57 | Q31: 6.7
L32: Nov | M32: 6.5 | N32: 1.7 | O32: 249.5 | P32: 1.72 | Q32: 3.6
L33: Dec | M33: 7.2 | N33: 2.4 | O33: 412.5 | P33: 2.42 | Q33: 6.2
L34: Annual | M34: =AVERAGE(M22:M33) -> 10.225 | N34: =AVERAGE(N22:N33) -> 2.408333333 | O34: =MAX(O22:O33) -> 713.1 | P34: =AVERAGE(P22:P33) -> 2.433333333 | Q34: =MAX(Q22:Q33) -> 14.3
K36: =+A5 -> 2025 | L36: mg/Nm3 | M36: Highest daily 95%ile 10-min average | N36: Monthly mean of 10-min averages | O36: Highest 10-min average | P36: Monthly mean of daily averages | Q36: Highest daily average
K37: A3 | L37: Jan
L38: Feb
L39: Mar
L40: Apr
L41: May
L42: Jun
L43: Jul
L44: Aug
L45: Sep
L46: Oct
L47: Nov
A48: Comments : | L48: Dec
A49: Environment Agency explanatory note: The 10-minute average ELV is based on the “95th percentile”. In this case this means that 95% of the 10 minute averages in the relevant 24-hour period (i.e. 137) must be below 150 mg/Nm3, and 5% (i.e. 7) are allowed to be any value above 150 mg/Nm3. Whilst we expect operators to minimise CO emissions at all times, it is perfectly acceptable for the value of the maximum 10-minute average to be above 150 mg/Nm3, provided the 95th percentile ELV has been met for that period. | L49: Annual | M49: =AVERAGE(M37:M48) ->  | O49: =MAX(O37:O48) -> 0 | P49: =AVERAGE(P37:P48) ->  | Q49: =MAX(Q37:Q48) -> 0
K51: =+A5 -> 2025 | L51: mg/Nm3 | M51: Highest daily 95%ile 10-min average | N51: Monthly mean of 10-min averages | O51: Highest 10-min average | P51: Monthly mean of daily averages | Q51: Highest daily average
K52: A4 | L52: Jan
L53: Feb
L54: Mar
L55: Apr
L56: May
L57: Jun
L58: Jul
L59: Aug
L60: Sep
L61: Oct
L62: Nov
L63: Dec
L64: Annual | M64: =AVERAGE(M52:M63) ->  | O64: =MAX(O52:O63) -> 0 | P64: =AVERAGE(P52:P63) ->  | Q64: =MAX(Q52:Q63) -> 0
K66: =+A5 -> 2025 | L66: mg/Nm3 | M66: 95%ile 10-min avg maximum | N66: Monthly CO 10-min avg mean | O66: 10-min avg maximum | P66: Monthly daily mean | Q66: Monthly daily maximum
K67: A5 | L67: Jan
L68: Feb
L69: Mar
L70: Apr
L71: May
L72: Jun
L73: Jul
L74: Aug
L75: Sep
L76: Oct
L77: Nov
L78: Dec
L79: Annual | M79: =AVERAGE(M67:M78) ->  | O79: =MAX(O67:O78) -> 0 | P79: =AVERAGE(P67:P78) ->  | Q79: =MAX(Q67:Q78) -> 0

Sheet NH3
A1: =+'Cover Page'!$B$29 -> Annual Performance Report 2025 | E1: =+'Cover Page'!$B$33 -> Severnside Energy Recovery Centre
A3: Monitoring of Ammnonia emissions | D3: Whole Installation | G3: See Notes in Cell Q3 | J3: =+A3 -> Monitoring of Ammnonia emissions | N3: Per Combustion Line | Q3: Notes:
Q4: User to add logic to complete Whole installation, Table A5:G18. From the data in Per Combustion Line, Table J6:O79, subject to No. of lines installed
A5: =+'Cover Page'!C39 -> 2025 | B5: 1/2 Hourly Reference Periods | E5: Daily Reference Periods
A6: mg/Nm3 | B6: 1/2 hourly NH3 ELV | C6: Monthly mean of half-hourly averages | D6: Highest half- hourly average | E6: Daily NH3 ELV | F6: Monthly mean of daily averages | G6: Highest daily average | J6: =+A5 -> 2025 | K6: mg/Nm3 | L6: Monthly mean of half-hourly averages | M6: Highest half- hourly average | N6: Monthly mean of daily averages | O6: Highest daily average
A7: Jan | B7: 0 | C7: =AVERAGE(L7,L22) -> 0.25 | D7: =MAX(M7,M22) -> 5.5 | E7: 10 | F7: =AVERAGE(N7,N22) -> 0.225 | G7: =MAX(O7,O22) -> 1.5 | J7: A1 | K7: Jan | L7: 0.1 | M7: 4 | N7: 0.07 | O7: 1.5
A8: Feb | B8: 0 | C8: =AVERAGE(L8,L23) -> 0.2 | D8: =MAX(M8,M23) -> 1.7 | E8: 10 | F8: =AVERAGE(N8,N23) -> 0.2 | G8: =MAX(O8,O23) -> 0.5 | K8: Feb | L8: 0 | M8: 0.9 | N8: 0.04 | O8: 0.2
A9: Mar | B9: 0 | C9: 0.2 | D9: 1.9 | E9: 10 | F9: 0.145 | G9: 0.5 | K9: Mar | L9: 0.1 | M9: 1.9 | N9: 0.03 | O9: 0.3 | Q9: Whole Installation table A5:G18:
A10: Apr | B10: =+B9 -> 0 | C10: 0.2 | D10: 4 | E10: 10 | F10: 0.22 | G10: 2.4 | K10: Apr | L10: 0.1 | M10: 4 | N10: 0.14 | O10: 2.4 | Q10: Mean: for 1/2 hourly and daily periods calculate mean of values across all operational combustion lines for the month
A11: May | B11: 0 | C11: 0.25 | D11: 2.5 | E11: 10 | F11: 0.25 | G11: 1.3 | K11: May | L11: 0.1 | M11: 2.5 | N11: 0.1 | O11: 1.3
A12: Jun | B12: 0 | C12: 0.35 | D12: 3.5 | E12: 10 | F12: 0.375 | G12: 1.3 | K12: Jun | L12: 0 | M12: 1.2 | N12: 0.03 | O12: 0.2
A13: Jul | B13: 0 | C13: 2.05 | D13: 7.7 | E13: 10 | F13: 2.115 | G13: 3.6 | K13: Jul | L13: 1.7 | M13: 4.7 | N13: 1.7 | O13: 2.4 | Q13: Maximum: for 1/2 hourly and daily periods use the highest value across all operational combustion lines for the month
A14: Aug | B14: 0 | C14: 1.55 | D14: 6.8 | E14: 10 | F14: 1.56 | G14: 2.6 | K14: Aug | L14: 1.6 | M14: 4.8 | N14: 1.57 | O14: 2
A15: Sep | B15: 0 | C15: 1.9 | D15: 7.1 | E15: 10 | F15: 1.9 | G15: 3.5 | K15: Sep | L15: 2.4 | M15: 7.1 | N15: 2.4 | O15: 3.5
A16: Oct | B16: 0 | C16: 1.6 | D16: 7.1 | E16: 10 | F16: 1.65 | G16: 2.9 | K16: Oct | L16: 1.9 | M16: 7.1 | N16: 1.94 | O16: 2.9
A17: Nov | B17: 0 | C17: 1.4 | D17: 6.2 | E17: 10 | F17: 1.43 | G17: 2.3 | K17: Nov | L17: 1.7 | M17: 6.2 | N17: 1.68 | O17: 2.3
A18: Dec | B18: 0 | C18: 1.15 | D18: 7.6 | E18: 10 | F18: 1.145 | G18: 4.1 | K18: Dec | L18: 1.6 | M18: 7.6 | N18: 1.58 | O18: 4.1
K19: Annual | L19: =AVERAGE(L7:L18) -> 0.9416666667 | M19: =MAX(M7:M18) -> 7.6 | N19: =AVERAGE(N7:N18) -> 0.94 | O19: =MAX(O7:O18) -> 4.1
J21: =+A5 -> 2025 | K21: mg/Nm3 | L21: Monthly mean of half-hourly averages | M21: Highest half- hourly average | N21: Monthly mean of daily averages | O21: Highest daily average
J22: A2 | K22: Jan | L22: 0.4 | M22: 5.5 | N22: 0.38 | O22: 0.6
K23: Feb | L23: 0.4 | M23: 1.7 | N23: 0.36 | O23: 0.5
K24: Mar | L24: 0.3 | M24: 0.9 | N24: 0.26 | O24: 0.5
K25: Apr | L25: 0.3 | M25: 1 | N25: 0.3 | O25: 0.4
K26: May | L26: 0.4 | M26: 2.2 | N26: 0.4 | O26: 0.7
K27: Jun | L27: 0.7 | M27: 3.5 | N27: 0.72 | O27: 1.3
K28: Jul | L28: 2.4 | M28: 7.7 | N28: 2.53 | O28: 3.6
K29: Aug | L29: 1.5 | M29: 6.8 | N29: 1.55 | O29: 2.6
K30: Sep | L30: 1.4 | M30: 4 | N30: 1.4 | O30: 2.4
K31: Oct | L31: 1.3 | M31: 5.5 | N31: 1.36 | O31: 2.3
K32: Nov | L32: 1.1 | M32: 3.4 | N32: 1.18 | O32: 2.1
K33: Dec | L33: 0.7 | M33: 1.7 | N33: 0.71 | O33: 0.9
K34: Annual | L34: =AVERAGE(L22:L33) -> 0.9083333333 | M34: =MAX(M22:M33) -> 7.7 | N34: =AVERAGE(N22:N33) -> 0.9291666667 | O34: =MAX(O22:O33) -> 3.6
J36: =+A5 -> 2025 | K36: mg/Nm3 | L36: Monthly mean of half-hourly averages | M36: Highest half- hourly average | N36: Monthly mean of daily averages | O36: Highest daily average
J37: A3 | K37: Jan
K38: Feb
K39: Mar
K40: Apr
K41: May
K42: Jun
K43: Jul
K44: Aug
K45: Sep
K46: Oct
K47: Nov
A48: Comments : | K48: Dec
A49: An indicated ELV value of zero in the table above means that no ammonia limit is set in the permit. | K49: Annual | L49: =AVERAGE(L37:L48) ->  | M49: =MAX(M37:M48) -> 0 | N49: =AVERAGE(N37:N48) ->  | O49: =MAX(O37:O48) -> 0
J51: =+A5 -> 2025 | K51: mg/Nm3 | L51: Monthly mean of half-hourly averages | M51: Highest half- hourly average | N51: Monthly mean of daily averages | O51: Highest daily average
J52: A4 | K52: Jan
K53: Feb
K54: Mar
K55: Apr
K56: May
K57: Jun
K58: Jul
K59: Aug
K60: Sep
K61: Oct
K62: Nov
K63: Dec
K64: Annual | L64: =AVERAGE(L52:L63) ->  | M64: =MAX(M52:M63) -> 0 | N64: =AVERAGE(N52:N63) ->  | O64: =MAX(O52:O63) -> 0
J66: =+A5 -> 2025 | K66: mg/Nm3 | L66: Monthly mean of half-hourly averages | M66: Highest half- hourly average | N66: Monthly mean of daily averages | O66: Highest daily average
J67: A5 | K67: Jan
K68: Feb
K69: Mar
K70: Apr
K71: May
K72: Jun
K73: Jul
K74: Aug
K75: Sep
K76: Oct
K77: Nov
K78: Dec
K79: Annual | L79: =AVERAGE(L67:L78) ->  | M79: =MAX(M67:M78) -> 0 | N79: =AVERAGE(N67:N78) ->  | O79: =MAX(O67:O78) -> 0

Sheet Template changes log
A1: Log of changes to template (Environment Agency use only)
A3: Date | B3: Description of change | C3: New version number and date
A4: 2024-01-16 | B4: Air (periodic) tab: corrected default O2 reference from 6 to 11% | C4: Version 23.5a (for incinerators) - 16/01/2024
A5: 2024-09-23 | B5: Air (periodic) tab: corrected symbol for Thallium to Tl
A6: 2024-09-23 | B6: Air (periodic) tab: removed last year's references to different emission limit values applying from 03/12/23 and updated all relevant ELVs
A7: 2024-09-23 | B7: Tabs for continuously monitored pollutants (HCl, SO2 etc.): changed terminology in table headings to improve clarity
A8: 2024-09-23 | B8: Tabs for continuously monitored pollutants (HCl, SO2 etc.): removed last year's references to different emission limit values applying from 03/12/23 and updated all relevant ELVs
A9: 2024-09-23 | B9: Perf 1 tab: updated formula for water usage to report m3 rather than litres and corrected error with formula copying operator name
A10: 2024-09-23 | B10: Operational Summary tab: table added on start-ups and shut-downs
A11: 2024-09-23 | B11: Operational Summary tab: table added on dioxins and mercury protocols
A12: 2024-09-23 | B12: Operational Summary tab: table added on AST, QAL 2 and calibration functions
A13: 2024-09-23 | B13: CO2 N2O tab: various changes made to notes to reflect the fact that most plants should now have calibrated CEMS and flow meters + some have C14 samplers and more up to date industry data | C13: Version 24a (for incinerators) - 23/09/24
A14: 2024-11-08 | B14: CO2 N2O tab: Changed the N2O CO2 equivalence factor from 298 to 265 in line with recently updated government greenhouse gas figures: https://www.gov.uk/government/publications/greenhouse-gas-reporting-conversion-factors-2024
A15: 2024-11-08 | B15: CO2 N2O tab: Added an additional requirement for municipal EfW plants to state the yearly average biogenic percentage of the waste by mass, and reference to a document which sets out a methodology for calculating NCV of waste from the results of C14 sampling.
A16: 2024-11-08 | B16: Permit Compliance tab: Two additional columns added + explanatory notes to the table entitled "Summary of non-compliances under the permit" to allow CCS scores to be stated where relevant.
A17: 2024-11-08 | B17: Residue Quality tab: Note added explaining application of TOC and LOI limits and asking operators to report both metrics where measured. | C17: Version 24.1a (for incinerators) - 08/11/24
A18: 2024-11-27 | B18: Operational Summary tab: table added on start-ups and shut-downs | C18: Version 24.2a (for incinerators) - 27/11/24
A19: 2025-11-27 | B19: Cover Page: Print as PDF and Print Report and pdf buttons deleted and blank columns removed; contents page deleted | C19: Version 25.1a (for incinerators) - 27/11/25
A20: 2025-11-27 | B20: Residue Quality tab renamed to "Residues", and Summary of residue handling table moved from Operational Summary tab to Residues tab.
A21: 2025-11-27 | B21: Various changes made to the Operational Data tab including • Reformatting of the rows under the Operational data heading (Rows 3-8) to make it clearer what information is required. • Amendment of the rows under the Energy Usage / Export heading (Rows 26-32) to calculate an “indicative parasitic load” (now excluding energy imported) • Amendment of the unit for gas usage from cubic feet to cubic metres (Row 50) • Some amendments to the first 2 notes and other minor edits • Deleted "Overall Availability, mean avg. of all lines, hrs" row
A22: 2025-11-27 | B22: Operational Summary tab: Note added requiring all emergency shut-downs be listed, irrespective of whether or not they were reportable.
A23: 2025-11-27 | B23: CO2 N2O tab: Note added to ask operators to ensure that relevant data reported here matches that which will be submitted under the Pollution Inventory
